{"text_format":"1","workbook":"xlsx","n_sheets":2,"sheets":["CATALOGO","RESUMEN"],"not_rendered":{"charts":0,"images":4,"macros":1,"external_links":0,"defined_names":3,"comments":0,"pivot_tables":0},"unopened":[],"bounds":{"document_bytes":16777216,"sheet_cells":100000,"rows_first":2000,"rows_last":500,"rows_between":2000,"halvings":0,"cell_chars":16384,"cell_head_chars":4096},"cells_cut":0,"cells_raw":0,"read":"whole","date_system":"1900"}

{"sheet":"CATALOGO","index":0,"n_rows":215,"n_cols":7,"rows_kept":215,"cut":false,"hidden":false,"merged":[[8,0,8,6],[9,0,9,6],[2,0,2,6],[3,0,3,6],[4,0,4,6],[5,0,5,6],[7,0,7,6]]}
[]
[]
["GOBIERNO DEL ESTADO DE BAJA CALIFORNIA SUR"]
["SECRETARIA DE PLANEACIÓN URBANA, INFRAESTRUCTURA,                                                                                                                                                  MOVILIDAD, MEDIO AMBIENTE Y RECURSOS NATURALES"]
["DIRECCIÓN DE OBRAS PUBLICAS"]
["CATALOGO DE CONCEPTOS Y CANTIDADES DE OBRA"]
[]
["OBRA: REHABILITACION DE SEGUNDA ETAPA ESCUELA DE MUSICA (PARQUE EXTERIOR) EN CIUDAD CONSTITUCION, MUNICIPIO DE COMONDU, BAJA CALIFORNIA SUR."]
["LICITACION PUBLICA No. LPO-000000007-053-2024"]
["CONCURSO No."]
[]
["CLAVE","CONCEPTO","UNIDAD","CANTIDAD","PRECIO UNITARIO","PRECIO UNITARIO CON LETRA","IMPORTE"]
["A.-","PRELIMINARES."]
["01.-","LIMPIEZA, TRAZO Y NIVELACIÓN DEL TERRENO CON EQUIPO TOPOGRÁFICO; INCLUYE: NIVEL DE MANGUERA Y NIVELETAS CON POLINES Y FAJILLAS, HILOS, CAL, MANO DE OBRA Y HERRAMIENTA, DESPALME DE TERRENO VEGETAL CAPA DE 20 CM. Y RETIRO DE LA MISMA FUERA DE LA OBRA, COLOCACIÓN DE BANCO DE NIVEL SEGÚN ESPECIFICACIONES.","M2",{"$f":"3454-415","v":3039},null,null,{"$f":"D14*E14","v":0}]
[null,"SUBTOTAL PRELIMINARES",null,null,null,null,{"$f":"G14","v":0}]
["B.-","ALBAÑILERIA"]
["02.-","SUMINISTRO Y FABRICACIÓN DE PISO DE CONCRETO F’C=250 KG/ CM2. DE 10 CMS. DE ESPESOR, ACABADO PULIDO FINO,  INCLUYE: MALLA 6-6/10-10 PREPARACIÓN DEL TERRENO SEGUN SE REQUIERA EN OBRA, MANO DE OBRA, MATERIALES, EQUIPO, HERRAMIENTA, LIMPIEZA Y RETIRO DE SOBRANTES FUERA DE OBRA, EQUIPO DE SEGURIDAD Y TODO LO NECESARIO PARA LA CORRECTA EJECUCION DE LOS TRABAJOS"]
["2.1.-"," (BAN-06) BANQUETA  DE CONCRETO CON COLOR INTEGRAL COLOR GRIS ACABADO PULIDO FINO ","M2",{"$f":"435*1.1","v":478.50000000000006},null,null,{"$f":"D18*E18","v":0}]
["2.2.-","(BAN-07) 'BANQUETA  DE CONCRETO CON COLOR INTEGRAL FINO COLOR NEGRO, ACABADO PULIDO \n","M2",{"$f":"925*1.1","v":1017.5000000000001},null,null,0]
["2.3.-","CONSTRUCCIÓN DE RAMPA PARA DISCAPACITADOS CONCRETO F´C=200 KG/CM2 ACABADO ESCOBILLADO REFORZADA CON MALLALAC  6-6/10-10  ; INCLUYE: PINTURA EPOXICA COLOR AZUL PANONTE 294, ROTULADO DE LOGO PARA PERSONAS CON DISCAPACIDAD COLOR BLANCO;CARGO DIRECTO POR EL COSTO DE LOS MATERIALES Y MANO DE OBRA QUE INTERVENGAN, FLETE A OBRA, ACARREO HASTA EL LUGAR DE SU UTILIZACIÓN, DESPERDICIO, TRAZO, LIMPIEZA Y RETIRO DE SOBRANTES FUERA DE OBRA, EQUIPO DE SEGURIDAD, INSTALACIONES ESPECÍFICAS, DEPRECIACIÓN Y DEMÁS DERIVADOS DEL USO DE HERRAMIENTA Y EQUIPO.","M2",{"$f":"8.4*1.1","v":9.240000000000002},null,null,0]
["2.4.-","LINEAS DE CAJONES DE ESTACIONAMIENTO CON CONCRETO F'C=250 KG/CM2 CON COLOR INTEGRAL AMARILLO, SE 10 CMS DE ANCHO Y 5 CMS DE ESPESOR.","ML",{"$f":"(20*6)+(1.8*8*2)","v":148.80000000000001}]
["3.-","GUARNICIÓN DE CONCRETO F'C=200 KG/CM2 R.N. T.M.A. 19 MM. DE 23X20 CMS. DE SECCIÓN RECTANGULAR EN CAJETE DE JARIDINERAS, INCLUYE: TRAZO, EXCAVACION, CIMBRA METALICA, DESCIMBRADO, ELABORACIÓN, COLADO Y VIBRADO DEL CONCRETO, TRANSPORTE A LA SIGUIENTE POSICIÓN, ACABADO DEL LOMO PULIDO FINO COLOR NEGRO, MATERIALES, MANO DE OBRA Y HERRAMIENTA, CONCEPTO A SATISFACCION DE SUPERVISION.","ML",{"$f":"324.4*1.1","v":356.84000000000003},null,null,0]
["4.-","BANCA DE SECCION 45x45 (DB-04) A BASE DE BLOCK 15x20x40 CMS, ASENTADO CON MORTERO CEMENTO ARENA PROP. 1:4, CELDAS RELLENAS DE CONCRETO F'c= 250 GK/CM2 Y VARILLA DEL No. 3 @ TERCER CELDA; DESPLANTADA SOBRE PLANTILLA 5 CMS DE ESPESOR DE CONCRETO F'C= 100 KG/CM2; ACABADO LAMINADO DE CONCRETO COLOR NEGRO DESVASTADO CON 10 CM. ESPESOR REFORZADA CON VARILLA DEL No. 3 (3/8\") A CADA 30 CMS EN AMBOS SENTIDOS  INCLUYE: FLETES, COLOCACION HERRAMIENTA, MANO DE OBRA Y EQUIPO NECESARIO","ML",{"$f":"20.84+82.04+24.12","v":127.00000000000001},null,null,{"$f":"D23*E23","v":0}]
[null,"SUBTOTAL ALBAÑILERIA"]
["C.-","CERCO PERIMETRAL DE REJACERO Y MALLA CICLONICA"]
["5.-","SUMINISTRO Y COLOCACIÓN DE REJACERO.  INCLUYE: CARGO DIRECTO POR EL COSTO DE LOS MATERIALES Y MANO DE OBRA QUE INTERVENGAN, FLETE A OBRA, DESPERDICIO, ACARREO HASTA EL LUGAR DE SU UTILIZACIÓN, TRAZO Y NIVELACION, EXCAVACION Y RELLENO, TRASLAPES, ACCESORIOS, TAPAS DE POSTES, NIVELACION, CORTES, DOBLECES, AMARRES CON ALAMBRE GALVANIZDO CAL 16, LIMPIEZA, RETIRO DE SOBRANTES, EQUIPO DE SEGURIDAD, INSTALACIONES ESPECÍFICAS, DEPRECIACIÓN Y DEMÁS CARGOS DERIVADOS DEL USO DE EQUIPO Y HERRAMIENTA EN CUALQUIER NIVEL.  "]
["5.1.-","DE 2.50 MTS DE ALTURA, PARA CERCO PERIMETRAL, A BASE DE POSTE DE 2 1/2\" X 2 1/2\" A CADA 2.5 MTS. CAL. 16, LA INSTALACION DEBERA SER POR ENFRENTE DEL POSTE, SE COLOCARAN 4  ABRAZADERAS POR POSTE,  CON DADO DE CONCRETO EN TODOS LOS POSTES  DE 30 X 30 X 80 CMS. DE PROFUNDIDAD (UNA CADENA DE DESPLANTE DE 15 X 20 CMS., DE ARMEX DE CONCRETO F´C= 250 KG/CM2 EN CASO DE SER REQUERIDO),  CIMBRA APARENTE Y ACABADO APARENTE,  SE DEBERAN RESPETAR LAS ESPECIFICACIONES DEL FABRICANTE, EN COLOR INDICADO POR SUPERVISION. (VER DETALLE EN PLANO)","ML",{"$f":"18.94+56.75+20.38+31.28","v":127.35},null,null,{"$f":"D27*E27","v":0}]
["6.-","SUMINISTRO Y COLOCACIÓN DE PUERTAL DE REJA DE ACERO, A BASE DE POSTE DE 2 1/2\" X 2 1/2\" A CADA 2.5 MTS. CAL. 16,  LA INSTALACION DEBERA SER POR ENFRENTE DEL POSTE, SE COLOCARAN 4 ABRAZADERAS POR POSTE,  INCLUYE; CARGO DIRECTO POR EL COSTO DE LOS MATERIALES Y MANO DE OBRA QUE INTERVENGAN, FLETE A OBRA, DESPERDICIO, ACARREO HASTA EL LUGAR DE SU UTILIZACIÓN, TRAZO Y NIVELACIÓN, DOBLECES , CORTE, ENERGÍA ELÉCTRICA, RESANES, LIMPIEZA Y RETIRO DE SOBRANTES FUERA DE OBRA, EQUIPO DE SEGURIDAD, INSTALACIONES ESPECÍFICAS, DEPRECIACIÓN Y DEMÁS DERIVADOS DEL USO DE HERRAMIENTA Y EQUIPO. "]
["6.1.-","PEATONAL DE 1.00 X 2.00 MTS CON CERRADURA DE ALUMINIO CON INTERIOR DE ACERO INOXIDABLE DE ALTA SEGURIDAD, CHAPA CON LLAVE MARCA PHILLIPS Y ESPECIAL PARA USO EXTERIOR, BISAGRAS CLASE REFORZADA DE ACERO GALVANIZADO EN CALIENTE Y SOLDADOS ANTES DE PINTAR.","PZA",4,null,null,{"$f":"D29*E29","v":0}]
["7.-","FABRICACION Y COLOCACION DE CERCO PERIMETRAL DE 2.50 MTS. DE ALTURA, CON MALLA CICLONICA, A BASE DE  POSTES  DE ARRANQUE Y  DE TERMINO DE TUBO GALVANIZADO DE 2 1/2\" DE DIAMETRO CAL. #18 COLOCADOS A CADA 3.00 MTS, MALLA CICLONICA CAL. # 10.5 CON SOLERA ENTRELAZADA DE 1/8\" X 3/4\" PARA FIJACION, INCLUYE; CADENA DE CONCRETO HECHO EN OBRA F'C= 250  KG/CM2 CON 4 VARILLAS DEL No. 3 (3/8\") Y ESTRIBOS DEL No. 2(1/4\") A CADA 20 CMS., DADOS DE CONCRETO HECHO EN OBRA F'C= 200 KG/CM2 EN CADA POSTE DE 30 X 30 X 60 CMS,  CAPUCHA EN CADA POSTE, CARGO DIRECTO POR EL COSTO DE LOS MATERIALES Y MANO DE OBRA QUE INTERVENGAN, DESPERDICIOS, TRAZO Y NIVELACIÓN, DOBLECES, CORTES, AMARRES,   EXCAVACIONES, CIMBRADO Y DESCIMBRADO, RELLENO Y COMPACTACION, CORTES, ENERGÍA ELÉCTRICA, SOLDADO, SOLDADURA, ELECTRODOS,  ESMERILADO, RESANES, PINTURA ANTICORROSIVA PRIMARIA Y PINTURA DE ESMALTE A DOS MANOS COLOR INDICADO POR LA RESIDENCIA DE OBRA, HABILITADO, LIMPIEZA Y RETIRO DE SOBRANTES FUERA DE OBRA, EQUIPO DE SEGURIDAD, Y DEMÁS DERIVADOS DEL USO DE HERRAMIENTA Y EQUIPO, ACARREOS DENTRO Y FUERA DE LA OBRA Y TODO LO NECESARIO PARA SU CORRECTA EJECUCION.","ML",57.9,null,null,0]
[null,"SUBTOTALCERCO PERIMETRAL DE REJACERO Y MALLA CICLONICA",null,null,null,null,{"$f":"SUM(G26:G30)","v":0}]
["D.-","JUEGOS INFANTILES Y EJERCITADORES"]
[]
["8.-","SUMINISTRO Y COLOCACIÓN DE EJERCITADORES MARCA JUMBO,  INCLUYE; MUERTO DE CONCRETO F'C=250 KG/CM2 DE 30x30x60 CMS PARA FIJACION ARMADA CON 4 VARILLAS DEL No. 3(3/8\") Y ESTRIBOS DEL No. 2 (1/4\") A CADA 20 CMS.; CARGO DIRECTO POR EL COSTO DE LOS MATERIALES Y MANO DE OBRA QUE INTERVENGAN, FLETE A OBRA, DESPERDICIO, ACARREO HASTA EL LUGAR DE SU UTILIZACIÓN, TRAZO Y NIVELACIÓN, DOBLECES , CORTE, ENERGÍA ELÉCTRICA, OXÍGENO Y ACETILENO, SOLDADO, SOLDADURA, ELECTRODOS,  ESMERILADO, RESANES, PINTURA ANTICORROSIVA PRIMARIA EN SU CASO, PINTURA ESMALTE DOS MANOS EN COLOR INDICADO POR SUPERVISIÓN, LIJADO, ANEXAR CADENA IGUAL A LA EXISTENTE, HABILITADO, ARMADO, LIMPIEZA Y RETIRO DE SOBRANTES FUERA DE OBRA, EQUIPO DE SEGURIDAD, INSTALACIONES ESPECÍFICAS, DEPRECIACIÓN Y DEMÁS DERIVADOS DEL USO DE HERRAMIENTA Y EQUIPO. "]
["8.1.-","BICICLETA  INDIVIDUAL MODELO AEM-714","PZAS",3,null,null,{"$f":"D35*E35","v":0}]
["8.2.-","CAMINADORA INDIVIDUAL MODELO  AEM-214","PZAS",1,null,null,0]
["8.3.-","ELIPTICA INDIVIDUAL AEM-314","PZA",1,null,null,0]
["8.4.-","MOVIMIENTO DE CINTURA TRIPLE AEM-0112","PZA",1,null,null,0]
[null,"SUBTOTAL JUEGOS INFANTILES Y EJERCITADORES",null,null,null,null,{"$f":"SUM(G35:G38)","v":0}]
["E.-","MOBILIARIO URBANO"]
["9.-","SUMINISTRO Y FABRICACION  JARDINERA - BANCA DE BLOCK 15x20x40 Y CONCRETO CON DIFERENTES ELEMENTOS, CON CAPACIDAD PARA 16 PERSONAS:  INCLUYE: FLETES, COLOCACION, FIJACION A FIRME DE CONCRETO, HERRAMIENTA Y EQUIPO NECESARIO PARA SU CORRECTA INSTALACION Y FUNCIONAMIENTO:"]
["9.1.-","JARDINERA MESA DE 1.70x1.70 M A BASE DE BLOCK 15x20x40 CMS, ASENTADO CON MORTERO CEMENTO ARENA PROP. 1:4, DESPLANTADA SOBRE CADENA DE 15x20 CM, REFORZADA CON 4 # 3 Y ESTRIBOS DEL No. 2 @ 30 CMS, CONCRETO F'C=250 KG/CM2, CASTILLOS AHOGADOS @ TERCER CELDA CON CONCRETO F'C= 150 KG/CM2 Y VARILLA #3; APLICACIÓN DE IMPERMEABILIZANTE INTEGRAL  IGOL DENSO SIKA EN CARA INTERIOR ACABADO FLOTEADO FINO Y ACABADO PULIDO EN COLOR NEGRO EN CARA EXTERIOR,  INCLUYE: APLICACION DE SELLADOR DE POLIURETANO, FLETES, COLOCACION, HERRAMIENTA, MANO DE OBRA Y EQUIPO NECESARIO.","M2",{"$f":"(6.2*0.75)*6","v":27.900000000000002},null,null,{"$f":"D42*E42","v":0}]
["9.2.-","CONSTRUCCION DE MESETA DE CONCRETO EN JARDINERA DE 0.55 DE ANCHO Y 8 CMS DE ESPESOR, VARILLA #3 @ 30 CMS. EN AMBOS SENTIDOS ANCLADAS EN CASTILLOS AHOGADOS,  CONCRETO F'c=250 KG/CM2 CON COLOR INTEGRAL, ACABADO PULIDO FINO COLOR NEGRO, ARISTAS SUPERIORES BOLEADAS; INCLUYE:  HABILITADO, ARMADO, LIMPIEZA Y RETIRO DE SOBRANTES FUERA DE OBRA, EQUIPO DE SEGURIDAD, INSTALACIONES ESPECÍFICAS, DEPRECIACIÓN Y DEMÁS DERIVADOS DEL USO DE HERRAMIENTA Y EQUIPO.","M2",{"$f":"(5.25-1.96)*6","v":19.740000000000002},null,null,0]
["9.3.-","BANCA  DE 2.30x.45x0.45 M A BASE DE BLOCK 15x20x40 CMS, ASENTADO CON MORTERO CEMENTO ARENA PROP. 1:4, CELDAS RELLENAS DE CONCRETO F'c= 250 GK/CM2 Y VARILLA DEL No. 3 @ TERCER CELDA; DESPLANTADA SOBRE PLANTILLA 5 CMS DE ESPESOR DE CONCRETO F'C= 100 KG/CM2; ACABADO LAMINADO DE CONCRETO COLOR NEGRO DESVASTADO CON 10 CM. ESPESOR REFORZADA CON VARILLA DEL No. 3 (3/8\") A CADA 30 CMS. EN AMBOS SENTIDOS; APLICACION DE SELLADOR DE PULIURETANO;  INCLUYE: FLETES, COLOCACION HERRAMIENTA, MANO DE OBRA Y EQUIPO NECESARIO","PZA",{"$f":"2*6","v":12},null,null,0]
["9.4.-","BANCA  DE 2.50x.45x0.45 M A BASE DE BLOCK 15x20x40 CMS, ASENTADO CON MORTERO CEMENTO ARENA PROP. 1:4, CELDAS RELLENAS DE CONCRETO F'c= 250 GK/CM2 Y VARILLA DEL No. 3 @ TERCER CELDA; DESPLANTADA SOBRE PLANTILLA 5 CMS DE ESPESOR DE CONCRETO F'C= 100 KG/CM2; ACABADO LAMINADO DE CONCRETO COLOR NEGRO DESVASTADO CON 10 CM. ESPESOR  REFORZADA CON VARILLA DEL No. 3 (3/8\") A CADA 30 CMS. EN AMBOS SENTIDOS INCLUYE: FLETES, COLOCACION HERRAMIENTA, MANO DE OBRA Y EQUIPO NECESARIO","PZA",6,null,null,0]
["9.5.-","BANCA  DE 1.40x.45x0.45 M A BASE DE BLOCK 15x20x40 CMS, ASENTADO CON MORTERO CEMENTO ARENA PROP. 1:4, CELDAS RELLENAS DE CONCRETO F'c= 250 GK/CM2 Y VARILLA DEL No. 3 @ TERCER CELDA; DESPLANTADA SOBRE PLANTILLA 5 CMS DE ESPESOR DE CONCRETO F'C= 100 KG/CM2; ACABADO LAMINADO DE CONCRETO COLOR NEGRO CON 10 CM. ESPESOR REFORZADA CON VARILLA DEL No. 3 (3/8\") A CADA 30 CMS. EN AMBOS SENTIDOS   INCLUYE: FLETES, COLOCACION HERRAMIENTA, MANO DE OBRA Y EQUIPO NECESARIO","PZA",6,null,null,0]
["10.-","SUMINISTRO Y COLOCACION DE BOTES PARA BASURA DE METAL  MARCA JUMBO MODELO GRIJALVO DOBLE MUO-0212-1 CON CAPACIDAD DE 60 LTS.  MEDIDAS (50 X 40 X100 CM), EN COLOR ROJO, ; FIJADAS EN  MUERTO DE CONCRETO F'C=250 KG/CM2 DE 30x30x60 CMS ARMADA CON 4 VARILLAS DEL No. 3(3/8\") Y ESTRIBOS DEL No. 2 (1/4\") A CADA 20 CMS.; INCLUYE: FLETES, COLOCACION HERRAMIENTA, MANO DE OBRA, EXCAVACIONES, ACARREOS DENTRO Y FUERA DE LA OBRA,  Y EQUIPO NECESARIO","PZA.",9,null,null,0]
["11.-","APARCA BICICLETAS SIX, MODELO  MUB-212, COLOR AZUL POLIESTER HORNEADO.\nDIMENSIONES: LARGO  1.40 m, ANCHO  0.425 m, ALTO  1.40 m. CAPACIDAD 6 UNIDADES\nPIJADO A FIRME CON PLACA DE 4\"x4\"x3/6\" CON 4 BARRENOS, TAQUETE EXPANSIVO Y TORNILLERIA,  INCLUYE: FLETES, COLOCACION HERRAMIENTA, MANO DE OBRA Y EQUIPO NECESARIO","PZA.",1,null,null,0]
[null,"SUBTOTAL MOBILIARIO URBANO",null,null,null,null,{"$f":"SUM(G42:G48)","v":0}]
["F.-","ANFITEATRO"]
[]
["12.-","FABRICACION DE LOSA DE CIMENTACION DE CONCRETO REFORZADO DE SECCION 10.40x5.20x0.10 MTS. DE ESPESOR CONCRETO F'C=250 KG/CM2.,  ARMADA  CON  VARILLA  DEL # 3 A CADA 20 CMS., AMBOS SENTIDOS, , INCLUYE: TRAZO, NIVELACION, EXCAVACION PROFUNDIDAD VARIABLE, PLANTILLA  F'C=100 KG/CM2 DE 5 CMS DE ESPESOR, RELLENO, AFINE, COMPACTACION, IMPERMEABILIZANTE INTEGRAL SIKA EN EL CONCRETO, HERRAMIENTA Y MANO DE OBRA QUE INTERVENGAN, ELABORACIÓN DEL CONCRETO, FLETE A OBRA, DESPERDICIO, VERTIDO, ACARREO HASTA EL LUGAR DE SU UTILIZACIÓN, HABILITADO DEL ACERO DE REFUERZO, ANCLAJES,  COLOCACIÓN, AMARRES, CIMBRADO, DESCIMBRADO, IMPERMEABILIZANTE EMULSION ASFALTICA BASE AGUA, LIMPIEZA Y RETIRO DE SOBRANTES FUERA DE OBRA, EQUIPO DE SEGURIDAD, INSTALACIONES ESPECÍFICAS, DEPRECIACIÓN Y DEMÁS DERIVADOS DEL USO DE HERRAMIENTA Y EQUIPO EN CUALQUIER NIVEL.","M2",{"$f":"10.4*5.2","v":54.080000000000005},null,null,{"$f":"D52*E52","v":0}]
["13.-","MUROS DE BLOCK  DE HUECO DE CONCRETO DE 15X20X40 CMS. PEGADO CON MORTERO CEMENTO - ARENA 1:5, REFORZADO CON 1 VARILLAS No.3,  A CADA 60 CMS. CELDA RELLENA CON MORTERO CEMENTO - ARENA PROP. 1: 3, ACABADO REPELLADO DE MORTERO CEMENTO ARENA 4:1 Y APLICACION DE CEMENTO PULIDO CON COLOR INTEGRAL NEGRO; INCLUYE: ALINEACIÓN, ANCLAJES A CIMENTACION, PLOMEO, ESCUADRAS, RECORTES, CORTES, DESPERDICIOS, ACARREOS DENTRO DE LA OBRA, MANO DE OBRA, LIMPIEZA GRUESA, EMBOQUILLADOS, CONCEPTO TERMINADO A SATISFACCIÓN DE SUPERVISIÓN.","ML",{"$f":"31.2+3.3","v":34.5},null,null,0]
[null,"ANCLAJE DE CASTILLOS, INCLUYE; CARGO DIRECTO POR EL COSTO DE LOS MATERIALES, HERRAMIENTA Y MANO DE OBRA QUE INTERVENGAN, ELABORACIÓN DEL CONCRETO, FLETE A OBRA, DESPERDICIO, VERTIDO, ACARREO HASTA EL LUGAR DE SU UTILIZACIÓN, HABILITADO DEL ACERO DE REFUERZO, ANCLAJES,  COLOCACIÓN, AMARRES, CIMBRADO, DESCIMBRADO, LIMPIEZA Y RETIRO DE SOBRANTES FUERA DE OBRA, EQUIPO DE SEGURIDAD, INSTALACIONES ESPECÍFICAS, DEPRECIACIÓN Y DEMÁS DERIVADOS DEL USO DE HERRAMIENTA Y EQUIPO EN CUALQUIER NIVEL."]
[null,"CASTILLO ( K-01) DE 15 X 20 CMS EN CIMENTACION Y ENRASE DE HASTA 100 CMS. DE DESARROLLO, F´C= 200 KG/CM2 CON 4 VARILLAS DEL # 3 Y ESTRIBOS DEL # 2 @ 10 CMS EN EXTREMOS Y A CADA 20 CMS CENTRO ,  RECUBRIMIENTO MINIMO 2 CMS., INCLUYE: ARMADO, CIMBRADO, COLADO, DESCIMBRADO, VIBRADO Y ACARREO DENTRO DE LA OBRA DEL MATERIAL.","PZA",4]
[null,"CADENA O CASTILLO  ACABADO COMÚN, CONCRETO H. EN O., F'C= 200 KG/CM2, IMPERMEABILIZANTE  INTEGRAL, A CUALQUIER ALTURA Y GRADO DE DIFICULTAD, SE DEBERÁ CONSIDERAR PARA ESTE TRABAJO: MATERIALES, MANO DE OBRA, HERRAMIENTA Y EQUIPO, ANDAMIOS, CIMBRA, TORZALES, DESMOLDANTE, HABILITADO Y ARMADO DE ACERO, CRUCES DE VARILLAS, CORTES, DESPERDICIOS, COLADO, DESCIMBRADO, CURADO CON MEMBRANA, CARGAS, ACARREO Y ELEVACIÓN DE MATERIALES, DESCARGAS, ACOPIO Y RETIRO DE DESPERDICIOS A TIRO AUTORIZADO Y LIMPIEZA DE ÁREA DE TRABAJO."]
[null,"CADENA (CD-01) DE 15 X 20 CM. DE SECCIÓN, ARMADA CON 4 VARILLAS DEL Nº 3 A.R. Y ESTRIBOS DEL Nº 2 A CADA 20 CM. CON CIMBRA COMÚN.","ML",10.4]
[null,"CADENA (CC-01) DE 15 X 20 CM. DE SECCIÓN, ARMADA CON 4 VARILLAS DEL Nº 3 A.R. Y ESTRIBOS DEL Nº 2 A CADA 20 CM. CON CIMBRA COMÚN.","ML",10.4]
[null,"CASTILLO ( K-01) DE 15 X 20 CMS EN CIMENTACION Y ENRASE DE HASTA 100 CMS. DE DESARROLLO, F´C= 200 KG/CM2 CON 4 VARILLAS DEL # 3 Y ESTRIBOS DEL # 2 @ 10 CMS EN EXTREMOS Y A CADA 20 CMS CENTRO ,  RECUBRIMIENTO MINIMO 2 CMS., INCLUYE: ARMADO, CIMBRADO, COLADO, DESCIMBRADO, VIBRADO Y ACARREO DENTRO DE LA OBRA DEL MATERIAL.","ML",{"$f":"2.5*4","v":10}]
[null,"MURO DE BLOCK HUECO DE CONCRETO, ASENTADO CON MORTERO, INCLUYE; CARGO DIRECTO POR EL COSTO DE LOS MATERIALES QUE INTERVENGAN, FLETE A OBRA, DESPERDICIO, ACARREO HASTA EL LUGAR DE SU UTILIZACIÓN, CORTE, AJUSTE, ELABORACIÓN DEL MORTERO, HABILITADO, LIMPIEZA Y RETIRO DE SOBRANTES FUERA DE OBRA, EQUIPO DE SEGURIDAD, INSTALACIONES ESPECIFICAS, DEPRECIACIÓN Y DEMÁS DERIVADOS DEL USO DE HERRAMIENTA Y EQUIPO, EN CUALQUIER NIVEL."]
[null,"PIEZA DE 15X20X40 CMS 'DE 15 CM. DE ESPESOR, PEGADO CON MORTERO CEMENTO ARENA  PROPORCION 1:5.","M2",{"$f":"D57*2.5","v":26}]
[null,"ACABADO EN MURO DE BLOCK DE 15X20X40CM CON JUNTAS DE 3CM A BASE DE MORTERO-CEMENTO-ARENA PROP. 1:4"]
[null,"(AM-03) ACABADO REPELLADO CON APLICACION A UNA MANO DE PINTURA BLANCA DE FONDEO MARCA OSEL Y COMO ACABADO FINAL DOS MANOS DE PINTURA VINILICA COLOR BLANCA MARCA OSEL; INCLUYE: ANDAMIOS, EQUIPO DE SEGURIDAD, INSTALACIONES ESPECIFICAS, DEPRECIACIÓN Y DEMÁS DERIVADOS DEL USO DE HERRAMIENTA Y EQUIPO, EN CUALQUIER NIVEL.","M2",{"$f":"D61*2","v":52}]
["14.-","SUMINISTRO Y RELLENO DE MATERIAL INERTE COMPACTADO CON EQUIPO MECÁNICO Y AGUA EN CAPAS DE 20 CM. DE ESPESOR, INCLUYE: ACARREO DENTRO  DE LA OBRA, PRUEBAS DE COMPACTACIÓN 90 % PROCTOR POR CAPA, CUANDO SE INDIQUE EN LAS ESPECIFICACIONES TÉCNICAS.","M3",{"$f":"50*0.43","v":21.5},null,null,0]
["15.-","FIRME DE CONCRETO COLOR NEGRO ACABADO FINO DE 8 CMS., F'C=200 KG/CM2  DE ESPESOR CON REFUERZO DE MALLA ELECTROSOLDADA 6.6-10X10, INCLUYE: ACARREOS INTERNOS, VIBRADO, CURADO, NIVELADO A DETALLE.","M2",50,null,null,0]
["16.-","SUMINISTRO Y FABRICACIÓN DE RAMPA DE CONCRETO F’C=200 KG/ CM2. COLOR BLANCO DE 8 CMS. DE ESPESOR, ACABADO PULIDO RAYADO CON BROCHA DE PELO; DENTELLON DE CONCRETO REFORZADO CON 4 VAR#3 LONGITUDINALES Y ESTRIBOS DEL #2 @ 20 CMS.,  INCLUYE: MALLA 6-6/10-10 PREPARACIÓN DEL TERRENO SEGUN SE REQUIERA EN OBRA, MANO DE OBRA, MATERIALES, EQUIPO, HERRAMIENTA, LIMPIEZA Y TODO LO NECESARIO PARA LA CORRECTA EJECUCION DE LOS TRABAJOS. ","M2",4.62,null,null,0]
[null,"SUBTOTAL ANFITEATRO",null,null,null,null,{"$f":"SUM(G52:G66)","v":0}]
["G.-","VELARIAS"]
["17.-","'FABRICACION DE ZAPATA AISLADA (ZA-01) DE CONCRETO REFORZADO DE SECCION 1.00X 1.00 MTS. X  0.25 MTS. DE ESPESOR CONCRETO F'C=250 KG/CM2.,  ARMADA  CON  VARILLA  DEL # 4 A CADA 20 CMS., AMBOS SENTIDOS, DADO DE 45x45x80 CMS ARMADA CON 6 VARILLAS #4 + ESTRIBOS #3 @ 20 CMS , INCLUYE: TRAZO, NIVELACION, EXCAVACION PROFUNDIDAD VARIABLE, PLANTILLA  F'C=100 KG/CM2 DE 5 CMS DE ESPESOR, RELLENO, AFINE, COMPACTACION, IMPERMEABILIZANTE INTEGRAL SIKA EN EL CONCRETO, HERRAMIENTA Y MANO DE OBRA QUE INTERVENGAN, ELABORACIÓN DEL CONCRETO, FLETE A OBRA, DESPERDICIO, VERTIDO, ACARREO HASTA EL LUGAR DE SU UTILIZACIÓN, HABILITADO DEL ACERO DE REFUERZO, ANCLAJES,  COLOCACIÓN, AMARRES, CIMBRADO, DESCIMBRADO, IMPERMEABILIZANTE EMULSION ASFALTICA BASE AGUA, LIMPIEZA Y RETIRO DE SOBRANTES FUERA DE OBRA, EQUIPO DE SEGURIDAD, INSTALACIONES ESPECÍFICAS, DEPRECIACIÓN Y DEMÁS DERIVADOS DEL USO DE HERRAMIENTA Y EQUIPO EN CUALQUIER NIVEL, (VER DETALLE DE ZAPATA ZA-01).","PZA",20,null,null,{"$f":"D69*E69","v":0}]
["18.-","TRABE DE LIGA (TL-1) EN CIMENTACIÓN DE 0.20 X 0.40 MTS.,  ARMADA CON 4 VARILLAS No.4 Y  CON  ESTRIBOS No.2 @  0.20 CMS., CONCRETO F'C=200 KG/CM2,  INCLUYE: TRAZO, NIVELACION, EXCAVACION, RELLENO, AFINE, COMPACTACION, IMPERMEABILIZANTE INTEGRAL SIKA EN EL CONCRETO, HERRAMIENTA Y MANO DE OBRA QUE INTERVENGAN, ELABORACIÓN DEL CONCRETO, FLETE A OBRA, DESPERDICIO, VERTIDO, ACARREO HASTA EL LUGAR DE SU UTILIZACIÓN, HABILITADO DEL ACERO DE REFUERZO, ANCLAJES,  COLOCACIÓN, AMARRES, CIMBRADO, DESCIMBRADO, LIMPIEZA Y RETIRO DE SOBRANTES FUERA DE OBRA, EQUIPO DE SEGURIDAD, INSTALACIONES ESPECÍFICAS, DEPRECIACIÓN Y DEMÁS DERIVADOS DEL USO DE HERRAMIENTA Y EQUIPO EN CUALQUIER NIVEL, (VER DETALLE EN PLANO).","ML",109.5,null,null,0]
["19.-","COLUMNA C-1 DE TUBO DE 6\" DE DIAMETRO DE 4.00 MTS DE ALTURA CEDULA 30; PINTURA ANTICORROSIVA Y DE ESMALTE A 2 MANOS, SOLDADURA  E6011  PRELIMINAR Y E7018 TERMINAL A  PLACA BASE (PB-1), FIJACIÓN, MANIOBRAS, MANO DE OBRA, DESPERDICIOS, SUMINISTRO, TRAZO, COLOCACION, TRANSPORTE AL LUGAR DE LA OBRA, NIVELACION, CONEXIONES, CORTES ENDEREZADO, DESPERDICIOS, PRIMARIO ESTRUCTURAL, CONTRAPLACA SEGUN PROYECTO, ENTREGA DE PRUEBAS DE LABORATORIO (ULTRASONIDO Y LIQUIDOS PENETRANTES), ELEVACION DE 30.00 MTS DE LOS ELEMENTOS ESTRUCTURALES,, MANO DE OBRA, HERRAMIENTA, EQUIPO MECANICO, ENERGIA ELECTRICA Y TODO LO NECESARIO PARA SU CORRECTA COLOCACION (VER DETALLE EN PLANO)","PZA",20,null,null,0]
["20.-","PLACA BASE (PB1) EN DADOS DE CIMENTACION A BASE DE PLACA DE ACERO A-36 DE 3/4 \" ESPESOR, DIMENSIONES DE (0.25X0.25 M) CON 4 BARRENOS PARA RECIBIR ANCLAS DE 3/4\". EL PRECIO INCLUYE: SUMINISTRO DE MATERIAL Y FLETE.","PZA",20,null,null,0]
["21.-","SUMINISTRO, HABILITADO Y COLOCACION DE ANCLAS (ANCLA AN-1) AHOGADAS EN DADO DE CONCRETO PARA PLACA BASE DE VARILLAS DE 3/4\", FY=4200 KG/CM2, CON UNA LONGITUD DE 65 CM (CADA ANCLA) Y TUERCA DE ANCLAJE . EL PRECIO INCLUYE: SUMINISTRO DE TODOS LOS MATERIALES A EMPLEAR EN OBRA, FLETES, ELEVACIONES POR MEDIOS MECANICOS A CUALQUIER NIVEL, ACARREOS VERTICALES Y HORIZONTALES HASTA EL SITIO DE SU COLOCACIÓN, COLOCACIÓN, TRAZO, AMARRES, CORTES, AJUSTES, SOLDADURAS, PRUEBAS, RETIRO DEL VOLUMEN GENERADO FUERA DE LA OBRA A PIE DE CARGA, HERRAMIENTA, EQUIPO, MANO DE OBRA, EQUIPO DE SEGURIDAD Y TODO LO NECESARIO PARA SU CORRECTA EJECUCION.","PZA",{"$f":"20*4","v":80},null,null,0]
["22.-","SUMINISTRO Y COLOCACION DE  MALLA SOMBRA RMCR95NT, HILO POLIETILENO DE ALTA DENSIDAD CON UV, HILO DE MONOFILAMENTO Y CINTA; PESO DE 292 GR; COLOR A SATISFACCION DE SUPERVISION; EL PRECIO INCLUYE TENSORES, HERAJES, COLOCACION, CORTES Y DESPERDICIOS, HERRMIENTA Y MANO DE OBRA.","M2",{"$f":"(22.85*4)+54.92","v":146.32},null,null,{"$f":"D74*E74","v":0}]
[null,"SUBTOTAL VELARIAS",null,null,null,null,{"$f":"SUM(G69:G74)","v":0}]
["H.-","TALLER"]
["H.1.-","CIMENTACION",null,null,null,null,{"$f":"SUM(G78:G91)","v":0}]
["23.-","LIMPIEZA, TRAZO Y NIVELACIÓN DEL TERRENO CON EQUIPO TOPOGRÁFICO; INCLUYE: NIVEL DE MANGUERA Y NIVELETAS CON POLINES Y FAJILLAS, HILOS, CAL, MANO DE OBRA Y HERRAMIENTA, DESPALME DE TERRENO VEGETAL CAPA DE 20 CM. Y RETIRO DE LA MISMA FUERA DE LA OBRA, COLOCACIÓN DE BANCO DE NIVEL SEGÚN ESPECIFICACIONES.","M2",47.57,null,null,{"$f":"D78*E78","v":0}]
["24.-","CONSTRUCCION DE ZAPATA CORRIDA DE LINDERO (ZCP-1) DE 0.60X0.15MTS. CONCRETO F'C=200 KG/CM2.  ARMADA CON  VARILLA 4 VARILLAS LONGITUDINALES DEL # 3  Y VARILLA TRANSVERSAL DEL #3 A CADA 20 CMS AMBOS SENTIDOS; INCLUYE: TRAZO, NIVELACION, EXCAVACION, PLANTILLA  DE 5 CMS DE ESPESOR F'C=100 KG/CM2, RELLENO, AFINE, COMPACTACION, HERRAMIENTA Y MANO DE OBRA QUE INTERVENGAN, ELABORACIÓN DEL CONCRETO, FLETE A OBRA, DESPERDICIO, VERTIDO, ACARREO HASTA EL LUGAR DE SU UTILIZACIÓN, HABILITADO DEL ACERO DE REFUERZO, ANCLAJES,  COLOCACIÓN, AMARRES, CIMBRADO, DESCIMBRADO, LIMPIEZA Y RETIRO DE SOBRANTES FUERA DE OBRA, EQUIPO DE SEGURIDAD, INSTALACIONES ESPECÍFICAS, DEPRECIACIÓN Y DEMÁS DERIVADOS DEL USO DE HERRAMIENTA Y EQUIPO EN CUALQUIER NIVEL, (VER  PLANO TALL-06 DETALLE DE ZAPATA. Z-01)","ML",{"$f":"0.38+5.2+5.2+0.35","v":11.13},null,null,0]
["25.-","MURETE DE ENRASE ACABADO COMÚN EN CIMENTACIÓN A BASE DE BLOCK DE CEMENTO DE 15X20X40 CM. (60 KG/CM2), ASENTADO CON MORTERO CEMENTO-ARENA 1:3 Y CON CELDAS RELLENAS DE CONCRETO F'C= 150 KG/CM2. INCLUYE: DESFONDAR BLOCK., MANO DE OBRA, HERRAMIENTAS, EQUIPO, ACARREOS, DESPERDICIOS Y CORTES, LIMPIEZA Y RETIRO DE SOBRANTES FUERA DE LA OBRA.","M2",{"$f":"13.13*0.63","v":8.2719000000000005},null,null,0]
["26.-","ANCLAJE DE CASTILLOS, INCLUYE; CARGO DIRECTO POR EL COSTO DE LOS MATERIALES, HERRAMIENTA Y MANO DE OBRA QUE INTERVENGAN, ELABORACIÓN DEL CONCRETO, FLETE A OBRA, DESPERDICIO, VERTIDO, ACARREO HASTA EL LUGAR DE SU UTILIZACIÓN, HABILITADO DEL ACERO DE REFUERZO, ANCLAJES,  COLOCACIÓN, AMARRES, CIMBRADO, DESCIMBRADO, LIMPIEZA Y RETIRO DE SOBRANTES FUERA DE OBRA, EQUIPO DE SEGURIDAD, INSTALACIONES ESPECÍFICAS, DEPRECIACIÓN Y DEMÁS DERIVADOS DEL USO DE HERRAMIENTA Y EQUIPO EN CUALQUIER NIVEL.",null,null,null,null,0]
["26.1.-","CASTILLO ( K-01) DE 15 X 15 CMS EN CIMENTACION Y ENRASE DE HASTA 100 CMS. DE DESARROLLO, F´C= 200 KG/CM2 CON 4 VARILLAS DEL # 3 Y ESTRIBOS DEL # 2 @ 10 CMS EN EXTREMOS Y A CADA 20 CMS CENTRO ,  RECUBRIMIENTO MINIMO 2 CMS., INCLUYE: ARMADO, CIMBRADO, COLADO, DESCIMBRADO, VIBRADO Y ACARREO DENTRO DE LA OBRA DEL MATERIAL.","PZA",4,null,null,0]
["26.2.-","CASTILLO ( K-02) DE 15 X 35 CMS EN CIMENTACION Y ENRASE DE HASTA 100 CMS. DE DESARROLLO, F´C= 200 KG/CM2 CON 6 VARILLAS DEL # 3 Y ESTRIBOS DEL # 2 @ 10 CMS EN EXTREMOS Y A CADA 20 CMS CENTRO ,  RECUBRIMIENTO MINIMO 2 CMS., INCLUYE: ARMADO, CIMBRADO, COLADO, DESCIMBRADO, VIBRADO Y ACARREO DENTRO DE LA OBRA DEL MATERIAL.","PZA",1,null,null,0]
["27.-","'CADENA DE DESPLANTE DE CONCRETO F'C=200 KG/CM2. CON AGREGADO MÁXIMO DE 19 MM.,  INCLUYE; CARGO DIRECTO POR EL COSTO DE LOS MATERIALES, HERRAMIENTA Y MANO DE OBRA QUE INTERVENGAN, ELABORACIÓN DEL CONCRETO, FLETE A OBRA, DESPERDICIO, VERTIDO, ACARREO HASTA EL LUGAR DE SU UTILIZACIÓN, HABILITADO DEL ACERO DE REFUERZO, ANCLAJES,  COLOCACIÓN, AMARRES, CIMBRADO, DESCIMBRADO, LIMPIEZA Y RETIRO DE SOBRANTES FUERA DE OBRA, EQUIPO DE SEGURIDAD, INSTALACIONES ESPECÍFICAS, DEPRECIACIÓN Y DEMÁS DERIVADOS DEL USO DE HERRAMIENTA Y EQUIPO EN CUALQUIER NIVEL"]
["27.1.-","CADENA (CD-01) DE 15 X 20 CM. DE SECCIÓN, ARMADA CON 4 VARILLAS DEL Nº 3 A.R. Y ESTRIBOS DEL Nº 2 A CADA 20 CM. CON CIMBRA COMÚN.","ML",{"$f":"11.13+2","v":13.13},null,null,{"$f":"D85*E85","v":0}]
["28.-","CONSTRUCCION DE ZAPATA AISLADA DE LINDERO (ZA-1) DE 1.00X1.00MTS. CONCRETO F'C=200 KG/CM2.  ARMADA CON PARRILLA DEL # 3 A CADA 15 CM EN AMBOS SENTIDOS; DADO (D-1) DE CONCRETO F'C=200 KG DE SECCION 35x35 CMS ARMADA CON 8 VARILLAS DEL #4 Y 2 ESTRIBOS DEL #2 A CADA 15 CMS.; INCLUYE: TRAZO, NIVELACION, EXCAVACION, PLANTILLA  DE 5 CMS DE ESPESOR F'C=100 KG/CM2, RELLENO, AFINE, COMPACTACION, HERRAMIENTA Y MANO DE OBRA QUE INTERVENGAN, ELABORACIÓN DEL CONCRETO, FLETE A OBRA, DESPERDICIO, VERTIDO, ACARREO HASTA EL LUGAR DE SU UTILIZACIÓN, HABILITADO DEL ACERO DE REFUERZO, ANCLAJES,  COLOCACIÓN, AMARRES, CIMBRADO, DESCIMBRADO, LIMPIEZA Y RETIRO DE SOBRANTES FUERA DE OBRA, EQUIPO DE SEGURIDAD, INSTALACIONES ESPECÍFICAS, DEPRECIACIÓN Y DEMÁS DERIVADOS DEL USO DE HERRAMIENTA Y EQUIPO EN CUALQUIER NIVEL, (VER DETALLE DE ZAPATA. ZA-1)","PZA",2,null,null,0]
["29.-","CONSTRUCCION DE ZAPATA AISLADA CENTRAL (ZA-2) DE 1.20 X 1.20MTS. CONCRETO F'C=200 KG/CM2.  ARMADA CON PARRILLA DEL # 3 A CADA 15 CM EN AMBOS SENTIDOS; DADO (D-1) DE CONCRETO F'C=200 KG DE SECCION 35x35 CMS ARMADA CON 8 VARILLAS DEL #4 Y 2 ESTRIBOS DEL #2 A CADA 15 CMS.; INCLUYE: TRAZO, NIVELACION, EXCAVACION, PLANTILLA  DE 5 CMS DE ESPESOR F'C=100 KG/CM2, RELLENO, AFINE, COMPACTACION, HERRAMIENTA Y MANO DE OBRA QUE INTERVENGAN, ELABORACIÓN DEL CONCRETO, FLETE A OBRA, DESPERDICIO, VERTIDO, ACARREO HASTA EL LUGAR DE SU UTILIZACIÓN, HABILITADO DEL ACERO DE REFUERZO, ANCLAJES,  COLOCACIÓN, AMARRES, CIMBRADO, DESCIMBRADO, LIMPIEZA Y RETIRO DE SOBRANTES FUERA DE OBRA, EQUIPO DE SEGURIDAD, INSTALACIONES ESPECÍFICAS, DEPRECIACIÓN Y DEMÁS DERIVADOS DEL USO DE HERRAMIENTA Y EQUIPO EN CUALQUIER NIVEL, (VER DETALLE DE ZAPATA. ZA-2)","PZA",1,null,null,0]
["30.-","'TRABE DE LIGA DE CONCRETO F'C=200 KG/CM2. CON AGREGADO MÁXIMO DE 19 MM.,  INCLUYE; EXCAVACIONES, CARGO DIRECTO POR EL COSTO DE LOS MATERIALES, HERRAMIENTA Y MANO DE OBRA QUE INTERVENGAN, ELABORACIÓN DEL CONCRETO, FLETE A OBRA, DESPERDICIO, VERTIDO, ACARREO HASTA EL LUGAR DE SU UTILIZACIÓN, HABILITADO DEL ACERO DE REFUERZO, ANCLAJES,  COLOCACIÓN, AMARRES, CIMBRADO, DESCIMBRADO, LIMPIEZA Y RETIRO DE SOBRANTES FUERA DE OBRA, EQUIPO DE SEGURIDAD, INSTALACIONES ESPECÍFICAS, DEPRECIACIÓN Y DEMÁS DERIVADOS DEL USO DE HERRAMIENTA Y EQUIPO EN CUALQUIER NIVEL"]
["30.1.-","TRABE DE LIGA (TL1) DE 20 X40 CM. DE SECCIÓN, ARMADA CON 4 VARILLAS DEL Nº 4 A.R. Y ESTRIBOS DEL Nº 3 A CADA 20 CM. CON CIMBRA COMÚN.","ML",{"$f":"5.78*2","v":11.56},null,null,{"$f":"D89*E89","v":0}]
["31.-","SUMINISTRO Y APLICACIÓN DE IMPERMEABILIZANTE EN CIMENTACIÓN A BASE DE AGUA 2 CAPAS DE EMULSIKA O SIMILAR EN CALIDAD Y PRECIO; INCLUYE: LIMPIEZA PREPARACIÓN DE SUPERFICIE.","M2",40,null,null,0]
["32.-","SUMINISTRO Y RELLENO DE MATERIAL INERTE COMPACTADO CON EQUIPO MECÁNICO Y AGUA EN CAPAS DE 15 CM. DE ESPESOR, INCLUYE: ACARREO DENTRO  DE LA OBRA, PRUEBAS DE COMPACTACIÓN 90 % PROCTOR MÍNIMO UNA MUESTRA POR CADA 100 M2 O CON LA FRECUENCIA QUE LA RESIDENCIA LO CONSIDERE NECESARIO, EQUIPO INDIVIDUAL DE PROTECCIÓN, MANO DE OBRA, EQUIPO Y HERRAMIENTA. MEDIR COMPACTADO.","M3",17.27,null,null,0]
["H.2.-","ALBAÑILERIA",null,null,null,null,{"$f":"SUM(G93:G109)","v":0}]
["33.-","MURO DE BLOCK HUECO DE CONCRETO, ASENTADO CON MORTERO, INCLUYE; CARGO DIRECTO POR EL COSTO DE LOS MATERIALES QUE INTERVENGAN, FLETE A OBRA, DESPERDICIO, ACARREO HASTA EL LUGAR DE SU UTILIZACIÓN, CORTE, AJUSTE, ELABORACIÓN DEL MORTERO, HABILITADO, LIMPIEZA Y RETIRO DE SOBRANTES FUERA DE OBRA, EQUIPO DE SEGURIDAD, INSTALACIONES ESPECIFICAS, DEPRECIACIÓN Y DEMÁS DERIVADOS DEL USO DE HERRAMIENTA Y EQUIPO, EN CUALQUIER NIVEL."]
["33.1.-","PIEZA DE 15X20X40 CMS 'DE 15 CM. DE ESPESOR, PEGADO CON MORTERO CEMENTO ARENA  PROPORCION 1:5.","M2",{"$f":"(5.78*2)*3.9","v":45.084000000000003},null,null,{"$f":"D94*E94","v":0}]
["34.-","ACABADO EN MURO DE BLOCK DE 15X20X40CM CON JUNTAS DE 3CM A BASE DE MORTERO-CEMENTO-ARENA PROP. 1:4",null,null,null,null,0]
["34.1.-","(AM-01) ACABADO REPELLADO,  ACABADO FINAL EN YESO PULIDO HASTA NIVEL DE PLAFON, CON APLICACION A UNA MANO DE PINTURA BLANCA DE FONDEO MARCA OSEL Y COMO ACABADO FINAL DOS MANOS DE PINTURA VINILICA COLOR BLANCA MARCA OSEL.; INCLUYE: ANDAMIOS, DESPERDICIOS, EQUIPO DE SEGURIDAD, INSTALACIONES ESPECIFICAS, DEPRECIACIÓN Y DEMÁS DERIVADOS DEL USO DE HERRAMIENTA Y EQUIPO, EN CUALQUIER NIVEL.","M2",{"$f":"(3.13*5.85)+17","v":35.310499999999998},null,null,0]
["34.2.-","(AM-02) ACABADO  CON PASTA DE PEGACRETO CON CEMENTO TERMINADO PULIDO FINO A DOS MANOS DE POLIURETANO DE ALTA DENSIDAD; INCLUYE: EQUIPO DE SEGURIDAD, INSTALACIONES ESPECIFICAS, DEPRECIACIÓN Y DEMÁS DERIVADOS DEL USO DE HERRAMIENTA Y EQUIPO, EN CUALQUIER NIVEL.","M2",10,null,null,0]
["34.3.-","(AM-03) ACABADO REPELLADO CON APLICACION A UNA MANO DE PINTURA BLANCA DE FONDEO MARCA OSEL Y COMO ACABADO FINAL DOS MANOS DE PINTURA VINILICA COLOR BLANCA MARCA OSEL; INCLUYE: ANDAMIOS, EQUIPO DE SEGURIDAD, INSTALACIONES ESPECIFICAS, DEPRECIACIÓN Y DEMÁS DERIVADOS DEL USO DE HERRAMIENTA Y EQUIPO, EN CUALQUIER NIVEL.","M2",{"$f":"(5.85*2*3.6)+2.5+1.75","v":46.37},null,null,0]
["35.-","ACABADO EN COLUMNAS, SE DEBERÁ CONSIDERAR PARA ESTE TRABAJO: MATERIALES, MANO DE OBRA, HERRAMIENTA Y EQUIPO, ANDAMIOS, CORTES, DESPERDICIOS, CARGAS, ACARREO Y ELEVACIÓN DE MATERIALES, DESCARGAS, ACOPIO Y RETIRO DE DESPERDICIOS A TIRO AUTORIZADO Y LIMPIEZA DE ÁREA DE TRABAJO."]
["35.1.-","(AM-04) COLUMNA DE CONCRETO DE 30 X 30, ACABADO FLOTEADO FINO, RECUBIERTO CON PIEDRA LAJA, COLOR EN TONOS GRISES U OSCUROS, ASENTADO CON MORTERO CEMENTO-ARENA-PEGAMARMOL.\n","M2",{"$f":"(0.3*4*3.8)+(0.6*3.8*2)","v":9.1199999999999992},null,null,{"$f":"D100*E100","v":0}]
["36.-","CADENA O CASTILLO  ACABADO COMÚN, CONCRETO H. EN O., F'C= 200 KG/CM2, IMPERMEABILIZANTE  INTEGRAL, A CUALQUIER ALTURA Y GRADO DE DIFICULTAD, SE DEBERÁ CONSIDERAR PARA ESTE TRABAJO: MATERIALES, MANO DE OBRA, HERRAMIENTA Y EQUIPO, ANDAMIOS, CIMBRA, TORZALES, DESMOLDANTE, HABILITADO Y ARMADO DE ACERO, CRUCES DE VARILLAS, CORTES, DESPERDICIOS, COLADO, DESCIMBRADO, CURADO CON MEMBRANA, CARGAS, ACARREO Y ELEVACIÓN DE MATERIALES, DESCARGAS, ACOPIO Y RETIRO DE DESPERDICIOS A TIRO AUTORIZADO Y LIMPIEZA DE ÁREA DE TRABAJO."]
["36.1.-","CASTILLO ( K-01) DE 15 X 15 CMS EN CIMENTACION Y ENRASE DE HASTA 100 CMS. DE DESARROLLO, F´C= 200 KG/CM2 CON 4 VARILLAS DEL # 3 Y ESTRIBOS DEL # 2 @ 10 CMS EN EXTREMOS Y A CADA 20 CMS CENTRO ,  RECUBRIMIENTO MINIMO 2 CMS., INCLUYE: ARMADO, CIMBRADO, COLADO, DESCIMBRADO, VIBRADO Y ACARREO DENTRO DE LA OBRA DEL MATERIAL.","ML",{"$f":"43.9","v":43.9},null,null,{"$f":"D102*E102","v":0}]
["36.2.-","CASTILLO ( K-02) DE 15 X 35 CMS EN CIMENTACION Y ENRASE DE HASTA 100 CMS. DE DESARROLLO, F´C= 200 KG/CM2 CON 6 VARILLAS DEL # 3 Y ESTRIBOS DEL # 2 @ 10 CMS EN EXTREMOS Y A CADA 20 CMS CENTRO ,  RECUBRIMIENTO MINIMO 2 CMS., INCLUYE: ARMADO, CIMBRADO, COLADO, DESCIMBRADO, VIBRADO Y ACARREO DENTRO DE LA OBRA DEL MATERIAL.","ML",{"$f":"1*3.9","v":3.9},null,null,0]
["36.3.-","CADENA (CD-01) DE 15 X 20 CM. DE SECCIÓN, ARMADA CON 4 VARILLAS DEL Nº 3 A.R. Y ESTRIBOS DEL Nº 2 A CADA 20 CM. CON CIMBRA COMÚN.","ML",{"$f":"(5.78*2)","v":11.56},null,null,0]
["36.4.-","CADENA (CD-02) DE 15 X 35 CM. DE SECCIÓN, ARMADA CON 4 VARILLAS DEL Nº 3 A.R. Y ESTRIBOS DEL Nº 2 A CADA 20 CM. CON CIMBRA COMÚN.","ML",{"$f":"5.78","v":5.78},null,null,0]
["36.5.-","CADENA (CD-03) DE 15 X 35 A 55 CM. DE SECCIÓN VARIABLE, ARMADA CON 6 VARILLAS DEL Nº 3 A.R. Y ESTRIBOS DEL Nº 2 A CADA 20 CM. CON CIMBRA COMÚN.","ML",{"$f":"5.78","v":5.78},null,null,0]
["37.-","FABRICACION DE COLUMNAS (CC-1) DE CONCRETO ARMADO DE 30 X 30 CMS. DE SECCIÓN ALTURA VARIABLE ENTRE 3.70 MTS. DE ALTURA, ARMADA CON 8 VARILLAS # 4 (1/2\"), 2 ESTRIBOS DEL #3 (3/8\") A CADA 15 CMS CON F´C=200 KG/CM2, INCLUYE: CIMBRADO DESCIMBRADO , MANO DE OBRA, HERRAMIENTA, EQUIPO, Y PRUEBAS DE LABORATORIO.","PZA",3,null,null,0]
["38.-"," FIRME DE CONCRETO F'C=200 KG/CM2., INCLUYE; CARGO DIRECTO POR EL COSTO DE LOS MATERIALES Y MANO DE OBRA QUE INTERVENGAN, FLETE A OBRA. DESPERDICIO, ACARREO HASTA EL LUGAR DE SU UTILIZACIÓN, TRAZO Y RECTIFICACIÓN DE NIVELES, MAESTREADO, CIMBRA EN FRONTERAS, TRASLAPES, GANCHOS, ALAMBRE RECOCIDO EN SU CASO, HABILITADO,  RETIRO, CORTES, ARMADO, AMARRES, ELABORACIÓN DE CONCRETO, IMPERMEABILIZANTE  INTEGRAL, COLADO, VIBRADO, CURADO, PRUEBAS, LIMPIEZA Y RETIRO DE SOBRANTES FUERA DE OBRA, EQUIPO DE SEGURIDAD, INSTALACIONES ESPECÍFICAS, DEPRECIACIÓN Y DEMÁS DERIVADOS DEL USO DE HERRAMIENTA Y EQUIPO EN CUALQUIER NIVEL. "]
["38.1.-","DE 10 CM. DE ESPESOR. AGREGADO MÁXIMO DE 19 MM.  Y MALLALAC 6-6/8-8, CON COLOR GRIS CLARO ACABADO PULIDO FINO","M2",{"$f":"42.1*1.1","v":46.31},null,null,{"$f":"D109*E109","v":0}]
["H.3.-","ESTRUCTURA DE ACERO Y TECHUMBRE",null,null,null,null,{"$f":"SUM(G111:G121)","v":0}]
["39.-","SUMINISTRO Y COLOCACIÓN DE HERRERÍA EN CUALQUIER NIVEL, INCLUYE; CARGO DIRECTO POR EL COSTO DE LOS MATERIALES Y MANO DE OBRA QUE INTERVENGAN, FLETE A OBRA, DESPERDICIO, ACARREO HASTA EL LUGAR DE SU UTILIZACIÓN, USO DE GRÚAS, TRAZO Y NIVELACIÓN, DOBLECES , CORTE, ENERGÍA ELÉCTRICA, OXÍGENO Y ACETILENO, SOLDADO, SOLDADURA 6011 Y/O 7018  SEGUN SEA EL CASO, ELECTRODOS,  ESMERILADO, RESANES, PINTURA ANTICORROSIVA CROMATO DE ZINC (DOS MANOS), PINTURA ANTICORROSIVA PRIMARIA (DOS MANOS), PINTURA ESMALTE (DOS MANOS) EN COLOR INDICADO POR SUPERVISION, TAPAR EXTREMOS CON PLACA 3/16\", HABILITADO, ARMADO, LIMPIEZA Y RETIRO DE SOBRANTES FUERA DE OBRA, EQUIPO DE SEGURIDAD, INSTALACIONES ESPECÍFICAS, DEPRECIACIÓN Y DEMÁS DERIVADOS DEL USO DE HERRAMIENTA Y EQUIPO. "]
["39.1.-","DE PTR DE 2\" X 2\" PULGADAS, 51 MM X 51 MM, COLOR BLANCO, 4.00 KG/ML. ( PARA CONFORMAR  CUERDA SUPERIOR E INFERIOR , REFUERZOS A TENSION Y COMPRESION (MONTANTES Y DIAGONALES) EN ARMADURA.","KG",272,null,null,{"$f":"D112*E112","v":0}]
["39.2.-","'DE POLIN MONTEN SENCILLO (L-1)  4 MT 14 (4\" X 2\" PULGADAS) LARGO 6 MTS, CALIBRE 14, 3.30 KG/ML.","KG",{"$f":"42.1+126.35","v":168.45},null,null,0]
["39.3.-","ANGULO DE 2\" X 2 \" X 3/16\" DE RESPALDO DE POLIN.","PZA",24,null,null,0]
["39.4.-","ANGULO DE L 4\" X 4 \" X 1/4\" 9.84KG/M CORRIDO PARA SOPORTE DE POLIN.","KG",62.7,null,null,0]
["39.5.-","ANCLAS DE 22 CMS DE LONGITUD REDONDO DE 5/8\" 45MM DE ROSCA STD. A CADA 80 CM","PZA",8,null,null,0]
["39.6.-","PLACA BASE (ACC-01)  DE ACERO PARA CONEXIÓN VIGA AR-1 - COLUMNA DE 250 MM X700 MM X 13MM  DE ESPESOR, PESO 149.38 KG/M2.; INCLUYE 4 ANCLAS TIPO \"U\" REDONDO LISO 5/8\" DE 53.4 CM DE LONGITUD.","PZA",1,null,null,0]
["39.7.-","PLACA BASE (ACC-02)  DE ACERO PARA CONEXIÓN VIGA AR-1 - COLUMNA DE 250 MM X700 MM X 13MM  DE ESPESOR, PESO 99.59 KG/M2.; INCLUYE 4 ANCLAS TIPO \"U\" REDONDO LISO 5/8\" DE 72 CM DE LONGITUD.","PZA",1,null,null,0]
["39.8.-","PLACA BASE (ACC-03)  DE ACERO PARA CONEXIÓN VIGA AR-1 - COLUMNA DE 250 MM X1000 MM X 13MM  DE ESPESOR, PESO 99.59 KG/M2.; INCLUYE 5 ANCLAS TIPO \"U\" REDONDO LISO 5/8\" DE 72 CM DE LONGITUD.","PZA",1,null,null,0]
["39.9.-","PLACA BASE (ACC-04)  DE ACERO PARA CONEXIÓN VIGA AR-3 - COLUMNA DE 250 MM X1100 MM X 13MM  DE ESPESOR, PESO 99.59 KG/M2.; INCLUYE 5 ANCLAS TIPO \"U\" REDONDO LISO 5/8\" DE 72 CM DE LONGITUD.","PZA",2,null,null,0]
["39.10.-","SUMINISTRO Y COLOCACIÓN DE LAMINA  ACANALADA DE ACERO GALVANIZADA MARCA PINTRO R-72, CAL 26, COMO CUBIERTA EN ESTRUCTURA METALICA.  INCLUYE; CARGO DIRECTO POR EL COSTO DE LOS MATERIALES Y MANO DE OBRA QUE INTERVENGAN, FLETE A OBRA, DESPERDICIO, ACARREO HASTA EL LUGAR DE SU UTILIZACIÓN, ELEVACIÓN, PERFORACIONES, TORNILLOS, PIJA AUTOROSCABLE, TAQUETES, EMPAQUES, SELLADO CON SIKAFLEX EN TRASLAPES, TRAZO, HABILITADO, CORTES, DOBLECES, ANCLAS, ESMERILADO, LIMPIEZA Y RETIRO DE SOBRANTES FUERA DE OBRA, EQUIPO DE SEGURIDAD, INSTALACIONES ESPECÍFICAS, DEPRECIACIÓN Y DEMÁS DERIVADOS DEL USO DE HERRAMIENTA Y EQUIPO, EN CUALQUIER NIVEL.","M2",{"$f":"32.48*1.1","v":35.728000000000002},null,null,0]
[null,"SUBTOTAL TALLER",null,null,null,null,{"$f":"G77+G92+G110","v":0}]
["I.-","JARDINERIA"]
["40.-"," SUMINISTRO Y PLANTACION DE PALMERA WASHINTONIA DE HASTA 5 MTS DE ALTURA, DE TRONCO LIMPIO , INCLUYE: SUMINISTRO DE MATERIALES, RIEGO CONSTANTE DURANTE TODA LA OBRA, ENRAISADORES, TIERRA VEGETAL, CONSUMIBLES, EQUIPO, ACARREOS, HERRAMIENTA, MANO DE OBRA Y TODO LO NECESARIO PARA LA CORRECTA EJECUCION DE LOS TRABAJOS.","PZA",20,null,null,{"$f":"D124*E124","v":0}]
["41.-","SUMINISTRO Y PLANTACION DE BUCIDA BUCERAS (OLIVO NEGRO)  DE 2 MTS DE ALTURA, DE TRONCO LIMPIO , INCLUYE: SUMINISTRO DE MATERIALES, RIEGO CONSTANTE DURANTE TODA LA OBRA, ENRAISADORES, TIERRA VEGETAL, CONSUMIBLES, EQUIPO, ACARREOS, HERRAMIENTA, MANO DE OBRA Y TODO LO NECESARIO PARA LA CORRECTA EJECUCION DE LOS TRABAJOS.","PZA",60,null,null,0]
["42.-","SUMINISTRO Y PLANTACION DE COLA DE ZORRA  DE HASTA 0.30 MTS DE ALTURA, , INCLUYE: SUMINISTRO DE MATERIALES, RIEGO CONSTANTE DURANTE TODA LA OBRA, ENRAISADORES, TIERRA VEGETAL, CONSUMIBLES, EQUIPO, ACARREOS, HERRAMIENTA, MANO DE OBRA Y TODO LO NECESARIO PARA LA CORRECTA EJECUCION DE LOS TRABAJOS.","PZA",100,null,null,0]
["I.1.-","INSTALACIÓN HIDRÁULICA",null,null,null,null,{"$f":"SUM(G128:G135)","v":0}]
["43.-","SUMINISTRO Y COLOCACIÓN DE TUBO PVC HIDRÁULICO SD-40, INCLUYE: CARGO DIRECTO POR EL COSTO DE LOS MATERIALES Y MANO DE OBRA QUE INTERVENGAN, FLETE, DESPERDICIOS, PEGAMENTO, CORTES, EXCAVACIÓN Y RELLENO COMPACTADO EN ZANJA DE 0.30 M. DE ANCHO POR 0.40 M. DE PROFUNDIDAD, CONEXIONES PVC NECESARIAS, HERRAMIENTA Y EQUIPO."]
["43.1.-","DE 1\" (25 MM.) DE DIÁMETRO PARA CEMENTAR.","ML",{"$f":"26+28+16+7+24+33+10+14","v":158}]
["43.2.-","DE 1/2\" (13 MM.) DE DIÁMETRO.","ML",{"$f":"D134","v":8}]
["44.-","CONSTRUCCIÓN, COLOCACIÓN DE CASETA DE PROTECCIÓN PARA BOMBA A BASE DE ANGULO DE 1 1/2\" MALLA CICLÓNICA, LAMINA GALVANIZADA CAL. 14, PINTURA ANTICORROSIVA PRIMARIO DOS APLICACIONES, PINTURA ESMALTE DOS APLICACIONES, ANCLADO A LA LOSA DE CONCRETO, PASADOR, CANDADO, CON DIMENSIONES DE 1.00 M. X 1.00 M. DE BASE Y 0.70 M. DE ALTO, INCLUYE: CARGO DIRECTO POR LOS COSTOS DE LOS MATERIALES Y MANO DE OBRA, FLETES, DESPERDICIO, HERRAMIENTA Y EQUIPO.","PZA",1]
["45.-","SUMINISTRO Y COLOCACIÓN DE BOMBA PARA AGUA DE 1.5 HP DE 220 V. CON SALIDA 1\" (25 MM.) DIÁMETRO, INCLUYE: TUBO DE C.P.V.C. DE 1\" (25 MM.) EN SUCCIÓN Y PICHANCHA, FIJACIÓN A PISO DE CONCRETO (LOSA), TAPÓN PURGADOR, VÁLVULA DE 1\" (25 MM.), CONEXIONES NECESARIAS PARA SU CORRECTA OPERACIÓN, CONCEPTO PROBADO.","PZA",1]
["46.-","REGISTRO HIDRÁULICO DE 40X40X40 CMS. FORJADO CON BLOCK 15X20X40 CMS. ASENTADO CON MORTERO CEMENTO - ARENA 1:3, APLANADO INTERIOR FLOTEADO FINO, INCLUYE: MARCO Y CONTRAMARCO DE ANGULO DE 1/8\"X1 1/2\" CON TAPA DE CONCRETO F'C=150 KG/CM2 PINTURA ANTICORROSIVA 2 APLICACIONES.","PZA",6]
["47.-","SUMINISTRO Y COLOCACIÓN DE LLAVE PARA RIEGO DE JARDÍN TIPO NARIZ PARA CONECTAR MANGUERA DE 1/2\" COLOCADA A 25 CMS. DE ALTO DEL TERRENO NATURAL SUJETANDO EL TUBO ALIMENTADOR EN UNA BASE DE CONCRETO DE 0.15X0.15X0.60 M., INCLUYE: CARGO DIRECTO POR EL COSTO DE LOS MATERIALES Y MANO DE OBRA QUE INTERVENGAN, EXCAVACIÓN, RELLENO COMPACTADO, PRUEBAS DE NO FUGAS, CONEXIONES NECESARIAS PARA SU OPERACIÓN, HERRAMIENTA Y EQUIPO.","PZA",8]
["48.-","SUMINISTRO E INSTALACIÓN DE TOMA DOMICILIARIA DE AGUA POTABLE DE LA RED MUNICIPAL A CISTERNA, INCLUYE: EXCAVACIÓN, RELLENO COMPACTADO DE ZANJA DE 0.30 M. DE ANCHO Y 0.50 M. DE PROFUNDIDAD, COLOCACIÓN DE TUBO C.P.V.C. HIDRÁULICO DE 3/4\" (19 MM.) DIAM., CONEXIONES, VÁLVULA DE C.P.V.C. 3/4\" DE ESFERA, HERRAMIENTA Y EQUIPO, PRUEBA DE FUNCIONALIDAD.","ML",35]
[null,"SUBTOTAL JARDINERIA",null,null,null,null,{"$f":"SUM(G124:G127)","v":0}]
["J.-","PISTA SKATE PUMP TRACK"]
[]
["49.-","ZAPATA CORRIDA (ZC-2) DE  DE 0.80 X 0.15 MTS. CONCRETO F'C=250 KG/CM2.  ARMADA CON  VARILLA DEL # 3 A CADA 20 CMS.  Y CONTRA TRABE DE 20 X 20 CMS. ARMADA CON 4 VARILLAS DEL # 3 Y ESTRIBOS DEL # 2 A CADA 20CMS., INCLUYE:TRAZO, NIVELACION, EXCAVACION, PLANTILLA  F'C=100 KG/CM2, RELLENO, AFINE, COMPACTACION, IMPERMEABILIZANTE, HERRAMIENTA Y MANO DE OBRA QUE INTERVENGAN, ELABORACIÓN DEL CONCRETO, FLETE A OBRA, DESPERDICIO, VERTIDO, ACARREO HASTA EL LUGAR DE SU UTILIZACIÓN, HABILITADO DEL ACERO DE REFUERZO, ANCLAJES,  COLOCACIÓN, AMARRES, CIMBRADO, DESCIMBRADO, LIMPIEZA Y RETIRO DE SOBRANTES FUERA DE OBRA, EQUIPO DE SEGURIDAD, INSTALACIONES ESPECÍFICAS, DEPRECIACIÓN Y DEMÁS DERIVADOS DEL USO DE HERRAMIENTA Y EQUIPO EN CUALQUIER NIVEL, (VER DETALLE DE ZAPATA.)","ML",{"$f":"13.5+9.56+7.79+8.34+3.98+9.95","v":53.11999999999999},null,null,{"$f":"D139*E139","v":0}]
["50.-","CONSTRUCCION DE MURO DE ENRASE DE ALTURA VARIABLE DE BLOCK HUECO DE CONCRETO DE 20x20x40, ASENTADO CON MORTERO CEMENTO ARENA  PROP 1:4 Y CELDAS RELLENAS DE CONCRETO F'C= 150KG/CM2, VARILLA DE REFUERZO  DE 3/8\" @ 3ER CELDA ANCLADA A CIMENTACION, INCLUYE PRECIO DIRECTO DE LOS MATERIALES, MANO DE OBRA, HERRAMIENTA Y EQUIPO.","M2",{"$f":"D139*1.1","v":58.431999999999995},null,null,0]
["51.-","ANCLAJE DE CASTILLOS (K-1) DE 0.20 X 0.20 MTS. HASTA 1.00 MTS. DE DESARROLLO, ARMADO CON 4 VARILLAS No.3 Y ESTRIBOS No.2 A/C 0.10 - 0.20 CMS MTS. CONCRETO      F'C=200 KG/CM2, INCLUYE; CARGO DIRECTO POR EL COSTO DE LOS MATERIALES, HERRAMIENTA Y MANO DE OBRA QUE INTERVENGAN, ELABORACIÓN DEL CONCRETO, FLETE A OBRA, DESPERDICIO, VERTIDO, ACARREO HASTA EL LUGAR DE SU UTILIZACIÓN, VIBRADO Y CURADO, PRUEBAS DE RESISTENCIA DEL CONCRETO, HABILITADO DEL ACERO DE REFUERZO, ANCLAJES,  COLOCACIÓN, AMARRES, CIMBRADO, DESCIMBRADO, LIMPIEZA Y RETIRO DE SOBRANTES FUERA DE OBRA, EQUIPO DE SEGURIDAD, INSTALACIONES ESPECÍFICAS, DEPRECIACIÓN Y DEMÁS DERIVADOS DEL USO DE HERRAMIENTA Y EQUIPO EN CUALQUIER NIVEL.","PZA",23,null,null,0]
["52.-","ANCLAJE DE CASTILLOS (K-A) DE 0.40X0.15 MTS. HASTA 1.67 MTS. DE DESARROLLO, ARMADO CON 1 VARILLAS No.3, CELDA RELLENA CON MORTERO CEMENTO - ARENA PROP. 1: 3, INCLUYE; CARGO DIRECTO POR EL COSTO DE LOS MATERIALES, HERRAMIENTA Y MANO DE OBRA QUE INTERVENGAN, ELABORACIÓN DEL CONCRETO, FLETE A OBRA, DESPERDICIO, VERTIDO, ACARREO HASTA EL LUGAR DE SU UTILIZACIÓN, VIBRADO Y CURADO, PRUEBAS DE RESISTENCIA DEL CONCRETO, HABILITADO DEL ACERO DE REFUERZO, ANCLAJES,  COLOCACIÓN, AMARRES, CIMBRADO, DESCIMBRADO, LIMPIEZA Y RETIRO DE SOBRANTES FUERA DE OBRA, EQUIPO DE SEGURIDAD, INSTALACIONES ESPECÍFICAS, DEPRECIACIÓN Y DEMÁS DERIVADOS DEL USO DE HERRAMIENTA Y EQUIPO EN CUALQUIER NIVEL.","PZA",60,null,null,0]
["53.-","CADENA PARA DESPLANTE (CD-01) EN CIMENTACIÓN DE 0.10 X 0.20 MTS., ARMADA CON 4 VARILLAS No.3 Y ESTRIBOS No.2 A/C 0.20 MTS., CONCRETO F'C=250 KG/CM2, INCLUYE: INCLUYE; CARGO DIRECTO POR EL COSTO DE LOS MATERIALES, HERRAMIENTA Y MANO DE OBRA QUE INTERVENGAN, ELABORACIÓN DEL CONCRETO, FLETE A OBRA, DESPERDICIO, VERTIDO, ACARREO HASTA EL LUGAR DE SU UTILIZACIÓN, VIBRADO Y CURADO, PRUEBAS DE RESISTENCIA DEL CONCRETO,  HABILITADO DEL ACERO DE REFUERZO, ANCLAJES,  COLOCACIÓN, AMARRES, CIMBRADO, DESCIMBRADO, LIMPIEZA Y RETIRO DE SOBRANTES FUERA DE OBRA, EQUIPO DE SEGURIDAD, INSTALACIONES ESPECÍFICAS, DEPRECIACIÓN Y DEMÁS DERIVADOS DEL USO DE HERRAMIENTA Y EQUIPO EN CUALQUIER NIVEL.","ML",{"$f":"D139","v":53.11999999999999},null,null,0]
["54.-","CONTRA TRABE Y ESTRIBOS No.3 A/C 0.20 MTS., CONCRETO F'C=250 KG/CM2, INCLUYE: INCLUYE; CARGO DIRECTO POR EL COSTO DE LOS MATERIALES, HERRAMIENTA Y MANO DE OBRA QUE INTERVENGAN, ELABORACIÓN DEL CONCRETO, FLETE A OBRA, DESPERDICIO, VERTIDO, ACARREO HASTA EL LUGAR DE SU UTILIZACIÓN, VIBRADO Y CURADO, PRUEBAS DE RESISTENCIA DEL CONCRETO,  HABILITADO DEL ACERO DE REFUERZO, ANCLAJES,  COLOCACIÓN, AMARRES, CIMBRADO, DESCIMBRADO, LIMPIEZA Y RETIRO DE SOBRANTES FUERA DE OBRA, EQUIPO DE SEGURIDAD, INSTALACIONES ESPECÍFICAS, DEPRECIACIÓN Y DEMÁS DERIVADOS DEL USO DE HERRAMIENTA Y EQUIPO EN CUALQUIER NIVEL.","ML",{"$f":"D143","v":53.11999999999999},null,null,0]
["55.-","CASTILLO DE CONCRETO (K-01) DE 0.20X0.20 MTS., ARMADO CON 4 VARILLAS No.3 Y ESTRIBOS No.2 A/C 0.10-0.20 MTS. CONCRETO F' C=200 KG/CM2, INCLUYE; CARGO DIRECTO POR EL COSTO DE LOS MATERIALES, HERRAMIENTA Y MANO DE OBRA QUE INTERVENGAN, FLETE A OBRA, DESPERDICIO, ACARREO HASTA EL LUGAR DE SU UTILIZACIÓN, HABILITADO DEL ACERO DE REFUERZO, ANCLAJES,  CIMBRADO, DESCIMBRADO, ELABORACIÓN DEL CONCRETO,  VERTIDO, VIBRADO,  CURADO, PRUEBAS DE LABORATORIO, LIMPIEZA Y RETIRO DE SOBRANTES FUERA DE OBRA, EQUIPO DE SEGURIDAD, INSTALACIONES ESPECIFICAS, DEPRECIACIÓN Y DEMÁS DERIVADOS DEL USO DE HERRAMIENTA Y EQUIPO, EN CUALQUIER NIVEL.","ML",{"$f":"23*1.6","v":36.800000000000004},null,null,0]
["56.-","CASTILLO DE CONCRETO (K-A) DE 0.40X0.15 MTS. A LA ALTURA TOTAL DE MURO DESARROLLO, ARMADO CON 1 VARILLAS No.3, CELDA RELLENA CON MORTERO CEMENTO - ARENA PROP. 1: 3, INCLUYE; CARGO DIRECTO POR EL COSTO DE LOS MATERIALES, HERRAMIENTA Y MANO DE OBRA QUE INTERVENGAN, FLETE A OBRA, DESPERDICIO, ACARREO HASTA EL LUGAR DE SU UTILIZACIÓN, HABILITADO DEL ACERO DE REFUERZO, ANCLAJES,  CIMBRADO, DESCIMBRADO, ELABORACIÓN DEL CONCRETO,  VERTIDO, VIBRADO,  CURADO, PRUEBAS DE LABORATORIO, LIMPIEZA Y RETIRO DE SOBRANTES FUERA DE OBRA, EQUIPO DE SEGURIDAD, INSTALACIONES ESPECIFICAS, DEPRECIACIÓN Y DEMÁS DERIVADOS DEL USO DE HERRAMIENTA Y EQUIPO, EN CUALQUIER NIVEL.","PZA",{"$f":"D142","v":60},null,null,0]
["57.-","CONSTRUCCIÓN DE RAMPA PARA SKATEBORAD DE 10 CMS. DE ESPESOR DE CONCRETO F'C=250 KG/CM2 COLOR INTEGRAL NEGRO, REFORZADA CON VARILLA DEL #3  A CADA 30 CMS. EN SENTIDO TRANSVERSAL Y MALLA ELECTROSOLDADA 6-6/10-10, INCLUYE: PREPARACIÓN DEL TERRENO Y COMPACTACIÓN, CORTE Y/O RELLENO HASTA 30 CMS. DE ESPESOR, RELLENO CON MATERIAL DE BANCO Y/O CORTE, NIVELACIÓN, ACABADO PULIDO FINO Y/O RALLADO CON BROCHA DE PELO, VOLTEADOR PERIMETRAL,  CURADO DURANTE LOS PRIMEROS 7 DÍAS DESPUÉS DEL COLADO, TENDIDO REGLEADO, EQUIPO, HERRAMIENTA, CONSUMIBLES,  MANO DE OBRA,  PROTECCIÓN POR 48 HORAS Y TODO LO NECESARIO PARA LA CORRECTA EJECUCIÓN DE LOS TRABAJOS, CONCEPTO A SATISFACCIÓN DE SUPERVISIÓN, Y ÁREAS DE ACUERDO A PLANO DE PROYECTO.","M2",{"$f":"15.32*1.1","v":16.852},null,null,0]
["58.-","FIRME DE CONCRETO DE 10 CMS., DE CONCRETO F'C=250 KG/CM2  DE ESPESOR COLOR INTEGRAL NEGRO,  REFORZAD0 CON VARILLA DEL #3  A CADA 30 CMS. SENTIDO TRANSVERSAL Y MALLA ELECTROSOLDADA 6-6/10-10 INCLUYE: ACARREOS INTERNOS, VIBRADO, CURADO, NIVELADO A DETALLE Y VERIFICADOS SUS NIVELES, REGLEADO,  ACABADO RAYADO CON BROCHA DE PELO, MATERIALES, MANO DE OBRA, CONCEPTO A SATISFACCIÓN Y VERIFICACIÓN DE SUPERVISIÓN.","M2",{"$f":"165*1.1","v":181.50000000000003},null,null,0]
["59.-","APLANADOS SOBRE MUROS DE BLOCK, Y A CUALQUIER SUPERFICIE, A BASE DE MORTERO CEMENTO - ARENA 1:5, ACABADO FLOTEADO FINO, INCLUYE: RESANES, PREPARACIÓN DE LA SUPERFICIE, REBABEOS, PLOMEO, FILOS, BOQUILLAS, A REGLA Y NIVEL, REPELLADOS, CURADOS, ANDAMIOS, ELEVACIÓN, ACARREOS DE MATERIALES, DENTRO DE LA OBRA, LIMPIEZA GRUESA Y FINA, MATERIALES NECESARIOS, MANO DE OBRA, CONCEPTO TERMINADO A SATISFACCIÓN DE SUPERVISIÓN.","M2",16,null,null,0]
["60.-","APLICACIÓN DE PASTA DE CEMENTO CON PEGACRETO EN MUROS, COLOR INTEGRAL BLANCO DE HASTA 1 CM DE ESPESOR, EL PRECIO INCLUYE: MATERIALES, MANO DE OBRA, HERRAMIENTA, DESPERDICIOS, ACARREOS, TERMINADO A SATISFACCION DE ","M2",16,null,null,0]
["61.-","RELLENO COMPACTADO AL 90 %  PROCTOR DE SU PESO VOLUMÉTRICO SECO MÁXIMO. MEDIDO EN SITIO DE COLOCACIÓN, EN CAPAS DE 20 CM. DE ESPESOR. INCLUYE: PRUEBAS DE LABORATORIO, CARGO DIRECTO POR EL COSTO DE LOS MATERIALES Y MANO DE OBRA QUE INTERVENGAN, AGUA, ACARREO HASTA EL LUGAR DE SU UTILIZACIÓN, SEGÚN EL CASO, TENDIDO DEL MATERIAL HUMEDECIDO, PRUEBAS (GRANULOMETRÍAS, COMPACTACIÓN Y HUMEDAD), LIMPIEZA DE ÁREA, EQUIPO DE SEGURIDAD, INSTALACIONES ESPECÍFICAS, DEPRECIACIÓN Y DEMÁS DERIVADOS DEL USO DE HERRAMIENTA Y EQUIPO","M3",{"$f":"(2.52*2.2*2)+(D148*0.4)","v":83.688000000000017},null,null,0]
["62.-","SUMINISTRO Y COLOCACIÓN DE TUBO DE 2\" DE DIÁMETRO, CEDULA 30 EN CUALQUIER NIVEL (ZONA PERIMETRAL EN AREA DE RAMPAS), INCLUYE; CARGO DIRECTO POR EL COSTO DE LOS MATERIALES Y MANO DE OBRA QUE INTERVENGAN, FLETE A OBRA, DESPERDICIO, ACARREO HASTA EL LUGAR DE SU UTILIZACIÓN, TRAZO Y NIVELACIÓN, DOBLECES , CORTE, ENERGÍA ELÉCTRICA, OXÍGENO Y ACETILENO, SOLDADO, SOLDADURA 6011 Y/O 7018  SEGUN SEA EL CASO, ELECTRODOS,  ESMERILADO, RESANES, PINTURA ANTICORROSIVA CROMATO DE ZINC (DOS MANOS), PINTURA ANTICORROSIVA PRIMARIA (DOS MANOS), PINTURA ESMALTE (DOS MANOS) EN COLOR INDICADO POR SUPERVISION, TAPAR EXTREMOS CON PLACA 3/16\", HABILITADO, ARMADO, LIMPIEZA Y RETIRO DE SOBRANTES FUERA DE OBRA, EQUIPO DE SEGURIDAD, INSTALACIONES ESPECÍFICAS, DEPRECIACIÓN Y DEMÁS DERIVADOS DEL USO DE HERRAMIENTA Y EQUIPO. ( VER DETALLE EN PLANO)","ML",4.4000000000000004,null,null,0]
["63.-","SUMINISTRO, COLOCACION Y FABRICACION  DE BARANDAL METÁLICO EN AREA DE RAMPAS DE SKATEBOARD A BASE DE TUBO DE 2\" DE DIÁMETRO, CEDULA 30 A UNA ALTURA DE 0.90 MTS., CON REFUERZO HORIZONTAL AL CENTRO, POSTES DE 1\" DE DIÁMETRO @ 1.00 MTS, FIJADO CON PLACA BASE DE 10 X 10 CMS DE 1/4 DE ESPESOR,CON 4 BARRENOS DE 1/2\" Y ANCLAS DE 3/8\" AHOGADA EN FIRME DE CONCRETO, INCLUYE: PINTURA ANTICORROSIVA Y DE ESMALTE, A DOS MANOS, FIJACIÓN, MANIOBRAS, MANO DE OBRA, DESPERDICIOS, SUMINISTRO, TRAZO, COLOCACIÓN, SOLDADURA, TRANSPORTE AL LUGAR DE LA OBRA, NIVELACIÓN, CORTES ENDEREZADO, DESPERDICIOS, PRIMARIO, MANO DE OBRA, HERRAMIENTA, EQUIPO MECÁNICO, ENERGÍA ELÉCTRICA Y TODO LO NECESARIO PARA SU CORRECTA COLOCACIÓN (VER DETALLE EN PLANO)","ML",9,null,null,0]
["64.-","SUMINISTRO COLOCACION  DE ANGULO DE 2\"X 1/4\", EN AREA DE RAMPAS DE SKATEBOARD ( RIEL EN FRONTERAS)   FIJADO CCON ANCLAS DE 3/8\" AHOGADA ELEMENTO DE CONCRETO, INCLUYE: PINTURA ANTICORROSIVA Y DE ESMALTE, A DOS MANOS, FIJACIÓN, MANIOBRAS, MANO DE OBRA, DESPERDICIOS, SUMINISTRO, TRAZO, COLOCACIÓN, SOLDADURA, TRANSPORTE AL LUGAR DE LA OBRA, NIVELACIÓN, CORTES ENDEREZADO, DESPERDICIOS, PRIMARIO, MANO DE OBRA, HERRAMIENTA, EQUIPO MECÁNICO, ENERGÍA ELÉCTRICA Y TODO LO NECESARIO PARA SU CORRECTA COLOCACIÓN (VER DETALLE EN PLANO)","ML",12,null,null,0]
["65.-","CONSTRUCCION DE CAJON DE 2.00x0.60x0.60 M A BASE DE BLOCK 15x20x40 CMS, ASENTADO CON MORTERO CEMENTO ARENA PROP. 1:4, CELDAS RELLENAS DE CONCRETO F'c= 100 GK/CM2 Y VARILLA DEL No. 3 @ TERCER CELDA; DESPLANTADA SOBRE PLANTILLA DE CONCRETO DE 05 CMS DE ESPESOR DE CONCRETO F'C= 100 KG/CM2 ; ACABADO LAMINADO DE CONCRETO COLOR NEGRO DESVASTADO CON 10 CM. ESPESOR ARMADO CON VARILLA DEL No. 3 (3/8\") A CADA 30 CMS. EN AMBOS SENTIDOS   INCLUYE: FLETES, COLOCACION HERRAMIENTA, MANO DE OBRA Y EQUIPO NECESARIO","PZA",2,null,null,0]
["66.-","CONSTRUCCION DE MODULO 5 DE 2.00x0.60x1.30 M A BASE DE BLOCK 20x20x40 CMS, ASENTADO CON MORTERO CEMENTO ARENA PROP. 1:4, CELDAS RELLENAS DE CONCRETO F'c= 250 GK/CM2 Y VARILLA DEL No. 3 @ TERCER CELDA; DESPLANTADA SOBRE PLANCHA DE CONCRETO DE 10 CMS DE ESPESOR DE CONCRETO F'C= 250 KG/CM2 REFORAZADA CON BASTONES DE VARILLA DEL No. 3 (3/8\") A CADA 30 CMS.; ACABADO LAMINADO DE CONCRETO COLOR INTEGRAL NEGRO DESVASTADO CON 10 CM. ESPESOR ARMADO CON VARILLA DEL No. 3 (3/8\") A CADA 40 CMS.SENTIDO TRANSVERSAL Y MALLA ELECTROSOLDADA 6-6/10-10   INCLUYE: FLETES, COLOCACION HERRAMIENTA, MANO DE OBRA Y EQUIPO NECESARIO","PZA",2,null,null,0]
["67.-","DENTELLON (DENT-1) EN CIMENTACIÓN DE 0.20 X 0.20 MTS., ARMADA CON 4 VARILLAS No.3 Y ESTRIBOS No.2 A/C 0.20 MTS., CONCRETO F'C=250 KG/CM2, CON PASAJUNTAS DE VARILLA CORRUGADA DEL No. 3(3/8\") A CADA 20 CMS, INCLUYE: INCLUYE; CARGO DIRECTO POR EL COSTO DE LOS MATERIALES, HERRAMIENTA Y MANO DE OBRA QUE INTERVENGAN, ELABORACIÓN DEL CONCRETO, FLETE A OBRA, DESPERDICIO, VERTIDO, ACARREO HASTA EL LUGAR DE SU UTILIZACIÓN, VIBRADO Y CURADO, PRUEBAS DE RESISTENCIA DEL CONCRETO,  HABILITADO DEL ACERO DE REFUERZO, ANCLAJES,  COLOCACIÓN, AMARRES, CIMBRADO, DESCIMBRADO, LIMPIEZA Y RETIRO DE SOBRANTES FUERA DE OBRA, EQUIPO DE SEGURIDAD, INSTALACIONES ESPECÍFICAS, DEPRECIACIÓN Y DEMÁS DERIVADOS DEL USO DE HERRAMIENTA Y EQUIPO EN CUALQUIER NIVEL.","ML",{"$f":"((10*2.2)+105.8)*1.1","v":140.58000000000001}]
[null,"SUBTOTAL PUMP-TRACK SKATE BOARD",null,null,null,null,{"$f":"SUM(G139:G156)","v":0}]
["K.-","INSTALACIONES ELECTRICAS"]
["K.1.-","AREA GENERAL.",null,null,null,null,{"$f":"SUM(G161:G181)","v":0}]
["01.-","SUMINISTRO Y COLOCACIÓN DE LUMINARIO LED PUNTA DE POSTE DE 100W,  VOLTAJE 220 VOLTS, MARCA FORLIGHTING, MODELO ECLIPSE, SISTEMA PLUS LED CIRCULAR,  SUPRESOR DE PICOS 10KV, DRIVER PHILIPS, IP67, 50 ,000 HORAS DE VIDA, SE INCLUYEN: CARGO DIRECTO POR EL COSTO DE MANO DE OBRA Y MATERIALES REQUERIDOS, FLETE A OBRA, ACARREO, COPLE, TRAZO, CORTE, CIMBRA,  COLOCACIÓN,  GUÍA DE ALAMBRE GALVANIZADO CALIBRE 14,  7 M. DE CABLE ARMAFLEX 3x10 AWG, FIJACIÓN, LIMPIEZA Y RETIRO DE SOBRANTES FUERA DE OBRA, EQUIPO DE SEGURIDAD, INSTALACIONES ESPECÍFICAS, DEPRECIACIÓN Y DEMÁS CARGOS DERIVADOS DEL USO DE EQUIPO Y HERRAMIENTA, EN CUALQUIER NIVEL. ","PZA.",11]
["03.-","SUMINISTRO Y COLOCACIÓN DE LUMINARIO LED DE 90W,  VOLTAJE 220 VOLTS, MARCA FORLIGHTING, MODELO FORLEXA FLX1,  SUPRESOR DE PICOS 10KV, DRIVER PHILIPS, IP67, LED CREE  SE INCLUYEN: CARGO DIRECTO POR EL COSTO DE MANO DE OBRA Y MATERIALES REQUERIDOS, FLETE A OBRA, ACARREO, COPLE, TRAZO, CORTE, CIMBRA,  COLOCACIÓN,  GUÍA DE ALAMBRE GALVANIZADO CALIBRE 14,  11 M. DE CABLE ARMAFLEX 3x10 AWG, FIJACIÓN, LIMPIEZA Y RETIRO DE SOBRANTES FUERA DE OBRA, EQUIPO DE SEGURIDAD, INSTALACIONES ESPECÍFICAS, DEPRECIACIÓN Y DEMÁS CARGOS DERIVADOS DEL USO DE EQUIPO Y HERRAMIENTA, EN CUALQUIER NIVEL. ","PZA.",4]
["02.-","EXCAVACIÓN DE ZANJA DE 50 Cm DE PROFUNDIDAD Y ANCHO VARIABLE DE 20 A 40 Cm EN TERRENO INVESTIGADO EN SITIO,  CAMA DE ARENA DE 10 Cm, TENDIDO DE TUBOS SEGÚN SE INDICA EN PLANOS, RELLENO DE LA ZANJA CON MATERIAL PRODUCTO DE EXCAVACIÓN COMPACTADO AL 90% MÍNIMO, INCLUYE CARGO DIRECTO POR EL COSTO DE MANO DE OBRA Y MATERIALES Y EQUIPOS REQUERIDOS, ACARREOS, TRAZO, LIMPIEZA Y RETIRO DE SOBRANTES FUERA DE OBRA, EQUIPO DE SEGURIDAD, INSTALACIONES ESPECÍFICAS, DEPRECIACIÓN Y DEMÁS CARGOS DERIVADOS DEL USO DE EQUIPO Y HERRAMIENTA, EN CUALQUIER NIVEL..","ML",268]
["03.-","SUMINISTRO Y COLOCACIÓN DE CANALIZACIÓN ELÉCTRICA A BASE DE TUBERÍA CONDUIT PVC PARED GRUESA, INCLUYE CARGO DIRECTO POR EL COSTO DE MANO DE OBRA Y MATERIALES REQUERIDOS, FLETE A OBRA, ACARREO, COPLE, TRAZO, CORTE, COLOCACIÓN, GUÍA DE ALAMBRE GALVANIZADO CALIBRE 14, FIJACIÓN, LIMPIEZA Y RETIRO DE SOBRANTES FUERA DE OBRA, EQUIPO DE SEGURIDAD, INSTALACIONES ESPECÍFICAS, DEPRECIACIÓN Y DEMÁS CARGOS DERIVADOS DEL USO DE EQUIPO Y HERRAMIENTA, EN CUALQUIER NIVEL."]
[null,"DE Ø 35 mm. Ø (1-1/4\")","ML",262]
[null,"DE Ø 41 mm. Ø (1-1/2\")","ML",16]
[]
["09.-","SUMINISTRO Y COLOCACION DE CABLE DE COBRE THW-LS EN CANALIZACION ELECTRICA, INCLUYE: CARGO DIRECTO POR EL COSTO DE MANO DE OBRA Y MATERIALES REQUERIDOS, FLETE A OBRA, ACARREO, CORTES, COLOCACION, CINTA AISLANTE SUPER 33, ZAPATA PONCHABLE Y/O CONECTOR BIPARTIDO EN EXTREMO DE LÍNEA, FIJACION, LIMPIEZA Y RETIRO DE SOBRANTES FUERA DE OBRA, EQUIPO DE SEGURIDAD, INSTALACIONES ESPECIFICAS, DEPRECIACIÓN Y DEMAS CARGOS DERIVADOS DEL USO DE EQUIPO Y HERRAMIENTA EN CUALQUIER NIVEL."]
[null,"DEL 10 AWG","ML",75]
[null,"DEL 8 AWG","ML",169]
[null,"DEL 6 AWG","ML",75]
["04.-","SUMINISTRO Y COLOCACIÓN DE CABLE DE ALUMINIO, INCLUYE: CARGO DIRECTO POR EL COSTO DE MANO DE OBRA Y MATERIALES REQUERIDOS, FLETE A OBRA, ACARREO, DESPERDICIO, TRAZAR, CORTAR, MARCAR Y PRUEBAS, GUIADO, CABLEADO, PEINAR, CONEXIÓN, SOLDAR, ENCINTAR, LIMPIEZA Y RETIRO DE SOBRANTES FUERA DE OBRA, EQUIPO DE SEGURIDAD, INSTALACIONES ESPECÍFICAS, DEPRECIACIÓN Y DEMÁS CARGOS DERIVADOS DEL USO DE EQUIPO Y HERRAMIENTA, EN CUALQUIER NIVEL."]
[null,"DEL 6 AWG TRIPLEX","ML",295]
["05.-","SUMINISTRO Y COLOCACIÓN DE POSTE DE Fe. CIRCULAR CICULAR GALVANIZADO DE 3 METROS DE ALTURA GALVANIZADO POR INMERCION, CON ESMALTE ANTICORROSIVO Y PINTADO EN COLOR INDICADO POR EL SUPERVISOR,  SE INCLUYE, CIMENTACIÓN TRAPEZOIDAL DE CONCRETO DE 40x40 EN CORONA Y 60x60 EN BASE, CON ALTURA DE 80 Cm., F´c=200 Kg/Cm2 ARMADA CON VARILLA N° 3 Y 4 SEGÚN SE INDICA EN PLANOS,  ANCLAJE ADECUADO, INCLUYE CARGO DIRECTO POR EL COSTO DE MANO DE OBRA Y MATERIALES REQUERIDOS, FLETE A OBRA, ACARREO, COPLE, TRAZO, CORTE, CIMBRA,  COLOCACIÓN, GUÍA DE ALAMBRE GALVANIZADO CALIBRE 14, FIJACIÓN, LIMPIEZA Y RETIRO DE SOBRANTES FUERA DE OBRA, EQUIPO DE SEGURIDAD, INSTALACIONES ESPECÍFICAS, DEPRECIACIÓN Y DEMÁS CARGOS DERIVADOS DEL USO DE EQUIPO Y HERRAMIENTA, EN CUALQUIER NIVEL.","PZA",11]
["06.-","SUMINISTRO Y COLOCACION DE REGISTRO ELECTRICO DE 40x40x60 CMS., PREFABRICADO A BASE CEMENTO F´c=150 Kg/Cm2, APLANADO INTERIOR PULIDO FINO CEMENTO ARENA 1:3, PISO DE GRAVA, MARCO Y CONTRAMARCO DE FIERRO, AGULO 1-1/2¨X1/4¨ Y TAPA DE CONCRETO F´C=150 Kg/Cm2, POR UNIDAD DE OBRA TERMINADA.","PZA",13]
["06.-","SUMINISTRO Y COLOCACION DE REGISTRO ELECTRICO DE 60x60x60 CMS., PREFABRICADO A BASE CEMENTO F´c=150 Kg/Cm2, APLANADO INTERIOR PULIDO FINO CEMENTO ARENA 1:3, PISO DE GRAVA, MARCO Y CONTRAMARCO DE FIERRO, AGULO 1-1/2¨X1/4¨ Y TAPA DE CONCRETO F´C=150 Kg/Cm2, POR UNIDAD DE OBRA TERMINADA.","PZA",5]
["02.-","SUMINISTRO Y COLOCACIÓN DE POSTE DE Fe. CIRCULAR CICULAR GALVANIZADO DE 9 METROS DE ALTURA GALVANIZADO POR INMERCION, CON ESMALTE ANTICORROSIVO Y PINTADO EN COLOR INDICADO POR EL SUPERVISOR,  CON BASE PARA MONTAJE PARA LOS REFLECTORES, FABRICADO CON ANGULO DE 1/2\"  DE ACERO, SE INCLUYE, CIMENTACIÓN TRAPEZOIDAL DE CONCRETO DE 40x40 EN CORONA Y 100x100 EN BASE, CON ALTURA DE 100 Cm., F´c=200 Kg/Cm2 ARMADA CON VARILLA N° 3 Y 4 SEGÚN SE INDICA EN PLANOS,  ANCLAJE ADECUADO, INCLUYE CARGO DIRECTO POR EL COSTO DE MANO DE OBRA Y MATERIALES REQUERIDOS, FLETE A OBRA, ACARREO, COPLE, TRAZO, CORTE, CIMBRA,  COLOCACIÓN, GUÍA DE ALAMBRE GALVANIZADO CALIBRE 14, FIJACIÓN, LIMPIEZA Y RETIRO DE SOBRANTES FUERA DE OBRA, EQUIPO DE SEGURIDAD, INSTALACIONES ESPECÍFICAS, DEPRECIACIÓN Y DEMÁS CARGOS DERIVADOS DEL USO DE EQUIPO Y HERRAMIENTA, EN CUALQUIER NIVEL.","PZA",4]
["07.-","SUMINISTRO Y COLOCACIÓN DE CONTACTOR DE ALUMBRADO MONOFÁSICO, 220 VOLTS., 70 AMPERES, BOBINA DE CONTROL 127 VOLTS., INCLUYE: GABINETE MULTIPROPÓSITO PARA SOBREPONER NEMA 3, FOTOCELDA CON CABLEADO DE CONTROL Y CONEXIÓN A CIRCUITO DE ALUMBRADO, INCLUYE CARGO DIRECTO POR EL COSTO DE MANO DE OBRA Y MATERIALES REQUERIDOS, FLETE A OBRA, ACARREO, COPLE, TRAZO, CORTE, COLOCACIÓN, GUÍA DE ALAMBRE GALVANIZADO CALIBRE 14, FIJACIÓN, LIMPIEZA Y RETIRO DE SOBRANTES FUERA DE OBRA, EQUIPO DE SEGURIDAD, INSTALACIONES ESPECÍFICAS, DEPRECIACIÓN Y DEMÁS CARGOS DERIVADOS DEL USO DE EQUIPO Y HERRAMIENTA, EN CUALQUIER NIVEL..","PZA",1]
["19.-","CENTRO DE CARGA MARCA SQUARE D,TIPO EMPOTRAR, TRIFASICO  A CUATRO HILOS, 30 ESPACIOS, BARRAS DE 200 AMPERES, .240/120 Vac., NEMA 3R, ZAPATAS PRINCIPALES. INCLUYE: CARGO DIRECTO POR EL COSTO DE MANO DE OBRA Y MATERIALES REQUERIDOS, RANURADO Y RESANES NECESARIOS, FLETE A OBRA, ACARREO, TRAZO, FIJACIÓN, CONEXIÓN MECÁNICA, CONEXIÓN ELÉCTRICA, PRUEBA, LIMPIEZA Y RETIRO DE SOBRANTES FUERA DE OBRA, EQUIPO DE SEGURIDAD, INSTALACIONES ESPECÍFICAS, DEPRECIACIÓN Y DEMÁS DERIVADOS DEL USO DE EQUIPO Y HERRAMIENTA, EN CUALQUIER NIVEL.","PZA.",1]
["19.-","CENTRO DE CARGA MARCA SQUARE D,TIPO EMPOTRAR, TRIFASICO  A CUATRO HILOS, 20 ESPACIOS, BARRAS DE 125 AMPERES, .240/120 Vac., NEMA 3R, ZAPATAS PRINCIPALES. INCLUYE: CARGO DIRECTO POR EL COSTO DE MANO DE OBRA Y MATERIALES REQUERIDOS, RANURADO Y RESANES NECESARIOS, FLETE A OBRA, ACARREO, TRAZO, FIJACIÓN, CONEXIÓN MECÁNICA, CONEXIÓN ELÉCTRICA, PRUEBA, LIMPIEZA Y RETIRO DE SOBRANTES FUERA DE OBRA, EQUIPO DE SEGURIDAD, INSTALACIONES ESPECÍFICAS, DEPRECIACIÓN Y DEMÁS DERIVADOS DEL USO DE EQUIPO Y HERRAMIENTA, EN CUALQUIER NIVEL.","PZA.",1]
["19.-","CENTRO DE CARGA MARCA SQUARE D,TIPO EMPOTRAR, MONOFASICO  A TRES HILOS, 12 ESPACIOS, BARRAS DE 100 AMPERES, .240/120 Vac., NEMA 3R, ZAPATAS PRINCIPALES. INCLUYE: CARGO DIRECTO POR EL COSTO DE MANO DE OBRA Y MATERIALES REQUERIDOS, RANURADO Y RESANES NECESARIOS, FLETE A OBRA, ACARREO, TRAZO, FIJACIÓN, CONEXIÓN MECÁNICA, CONEXIÓN ELÉCTRICA, PRUEBA, LIMPIEZA Y RETIRO DE SOBRANTES FUERA DE OBRA, EQUIPO DE SEGURIDAD, INSTALACIONES ESPECÍFICAS, DEPRECIACIÓN Y DEMÁS DERIVADOS DEL USO DE EQUIPO Y HERRAMIENTA, EN CUALQUIER NIVEL.","PZA.",1]
[]
["K.2.-","TALLER DE SOLDADURA",null,null,null,null,{"$f":"SUM(G185:G189)","v":0}]
[]
["03.-","SUMINISTRO Y COLOCACIÓN DE SALIDA ELÉCTRICA PARA LÁMPARA, EN CAJA DE LAMINA GALVANIZADA OCTAGONAL CON TAPA CIEGA, TUBO CONDUIT GALVANIZADO PARED GRUESA DE 16 MM. (1/2\") DE DIÁMETRO, AHOGADO EN LOSA O MURO, INCLUYE: CABLEADO CON CALIBRE 12 AWG THW-LS 90° PARA FASES Y NEUTRO Y 14 AWG DESNUDO PARA TIERRA FÍSICA, MATERIAL DIVERSO DE FIJACIÓN, APAGADOR, CONEXIÓN DEL CIRCUITO, RANURAS, PASOS Y RESANES NECESARIOS EN MURO, CARGO DIRECTO POR EL COSTO DE MANO DE OBRA Y MATERIALES REQUERIDOS, FLETE A OBRA, ACARREO, COPLE, TRAZO, CORTE, COLOCACIÓN, GUÍA DE ALAMBRE GALVANIZADO CALIBRE 14, FIJACIÓN, LIMPIEZA Y RETIRO DE SOBRANTES FUERA DE OBRA, EQUIPO DE SEGURIDAD, INSTALACIONES ESPECIFICAS, DEPRECIACIÓN Y DEMÁS CARGOS DERIVADOS DEL USO DE HERRAMIENTA Y EQUIPO EN CUALQUIER NIVEL.","SAL.",4]
["05.-","SUMINISTRO, COLOCACIÓN Y CONEXIÓN DE LÁMPARA LED, MODELO GAMMA LED 1,200, DE 30W., 127 VOLTS., L6852-5I0, MARCA MAGG, PARA SOBREPONER TERMINADO COLOR BLANCO, LUZ NEUTRA, 4,000°, PANTALLLA TRANSPARENTE,  SE INCLUYE: LED, DRIVER LED, TORNILLOS, TUERCAS, ARANDELAS Y DEMÁS ELEMENTOS DE FIJACIÓN Y CONEXIÓN, CARGO DIRECTO POR EL COSTO DE MANO DE OBRA Y MATERIALES REQUERIDOS, FLETE A OBRA, ACARREO, COLOCACIÓN, FIJACIÓN, LIMPIEZA Y RETIRO DE SOBRANTES FUERA DE OBRA, EQUIPO DE SEGURIDAD, INSTALACIONES ESPECIFICAS, DEPRECIACIÓN Y DEMÁS CARGOS DERIVADOS DEL USO DE HERRAMIENTA Y EQUIPO EN CUALQUIER NIVEL, ANEXAR COPIA DE CERTIFICADO DEL PRODUCTO.","PZA.",4]
["04.-","SUMINISTRO Y COLOCACIÓN DE SALIDA PARA CONTACTO POLARIZADO 127 V.  CON TAPA PARA METALICA, EN CAJA 4x2\", MARCA LEVINTON, CANALIZACIÓN A BASE DE TUBERÍA CONDUIT PVC PARED GRUESA DE 16 mm (1/2\"), CABLEADO CON CALIBRE 12 AWG THW-LS 90°C PARA FASE Y NEUTRO, 14 AWG CUALQUIER AISLAMIENTO PARA SISTEMA DE TIERRAS, INCLUYE: CONEXIÓN, RANURA Y RESANE EN MURO O PISO, CARGO DIRECTO POR EL COSTO DE MANO DE OBRA Y MATERIALES REQUERIDOS, FLETE A OBRA, ACARREO, COPLE, TRAZO, CORTE, GUÍA DE ALAMBRE GALVANIZADO CALIBRE 14, FIJACIÓN, LIMPIEZA Y RETIRO DE SOBRANTES FUERA DE OBRA, EQUIPO DE SEGURIDAD, INSTALACIONES ESPECÍFICAS, DEPRECIACIÓN Y DEMÁS CARGOS DERIVADOS DEL USO DE EQUIPO Y HERRAMIENTA, EN CUALQUIER NIVEL.","SAL.",6]
["10.-","SUMINISTRO Y COLOCACIÓN DE SALIDA PARA CONTACTO EN PISO,  DOBLE POLARIZADO CON TAPA MARCA ESTEVEZ, BISEL METALICO, HOUSING INTEGRADO, MODELO 32028-TT, CANALIZACIÓN A BASE DE TUBERÍA TUBO CONDUIT PVC PARED GRUESA DE 21 MM. (3/4\") DE DIÁMETRO, CABLEADO CON CALIBRE 12 AWG THW-LS 90° PARA FASES Y NEUTRO Y 2 CONDUCTORES CAL 14 AWG DESNUDO PARA TIERRA FÍSICA Y COLOR NARANJA PARA TIERRA AISLADA,  MATERIAL DIVERSO INCLUYE: CONEXIÓN, RANURA Y RESANE EN MURO, ACCESORIO, TOMACORRIENTE,  CARGO DIRECTO POR EL COSTO DE MANO DE OBRA Y MATERIALES REQUERIDOS, FLETE A OBRA, ACARREO, COPLE, TRAZO, CORTE, GUÍA DE ALAMBRE GALVANIZADO CALIBRE 14, FIJACIÓN, LIMPIEZA Y RETIRO DE SOBRANTES FUERA DE OBRA, EQUIPO DE SEGURIDAD, INSTALACIONES ESPECÍFICAS, DEPRECIACIÓN Y DEMÁS CARGOS DERIVADOS DEL USO DE EQUIPO Y HERRAMIENTA, EN CUALQUIER NIVEL.","SAL.",2]
["14.-","SUMINISTRO Y COLOCACIÓN DE SALIDA PARA CONTACTO 220 V. POLARIZADA A 20 A., EN CAJA 4x2\", CANALIZACIÓN A BASE DE TUBERÍA PVC PARED GRUESA DE 21 MM. (3/4\") DE DIÁMETRO,  INCLUYE: CABLEADO CON CALIBRE 10 AWG THW-LS 90°C PARA FASE, 12 AWG DESNUDO TIERRA FISICA, CONEXIÓN, RANURA Y RESANE EN MURO, CARGO DIRECTO POR EL COSTO DE MANO DE OBRA Y MATERIALES REQUERIDOS, FLETE A OBRA, ACARREO, COPLE, TRAZO, CORTE, GUÍA DE ALAMBRE GALVANIZADO CALIBRE 14, FIJACIÓN, LIMPIEZA Y RETIRO DE SOBRANTES FUERA DE OBRA, EQUIPO DE SEGURIDAD, INSTALACIONES ESPECÍFICAS, DEPRECIACIÓN Y DEMÁS CARGOS DERIVADOS DEL USO DE EQUIPO Y HERRAMIENTA, EN CUALQUIER NIVEL.","SAL.",2]
[]
["K.3.-","ANFITEATRO.",null,null,null,null,{"$f":"SUM(G193:G201)","v":0}]
[]
["01.-","SUMINISTRO Y COLOCACIÓN DE SALIDA ELÉCTRICA PARA LÁMPARA, EN CAJA DE LAMINA GALVANIZADA OCTAGONAL CON TAPA CIEGA, TUBO CONDUIT PVC PARED GRUESA DE 16 MM. (1/2\") DE DIÁMETRO, INCLUYE: CABLEADO CON CALIBRE 12 AWG THW-LS 90° PARA FASES Y NEUTRO Y 14 AWG DESNUDO PARA TIERRA FÍSICA, FIJADO EN ESTRUCTURA METALICA CON ABRASADERA OMEGA CADA 1.5 M. MATERIAL DIVERSO DE FIJACIÓN, APAGADOR, CONEXIÓN DEL CIRCUITO, RANURAS, PASOS Y RESANES NECESARIOS EN MURO, CARGO DIRECTO POR EL COSTO DE MANO DE OBRA Y MATERIALES REQUERIDOS, FLETE A OBRA, ACARREO, COPLE, TRAZO, CORTE, COLOCACIÓN, GUÍA DE ALAMBRE GALVANIZADO CALIBRE 14, FIJACIÓN, LIMPIEZA Y RETIRO DE SOBRANTES FUERA DE OBRA, EQUIPO DE SEGURIDAD, INSTALACIONES ESPECIFICAS, DEPRECIACIÓN Y DEMÁS CARGOS DERIVADOS DEL USO DE HERRAMIENTA Y EQUIPO EN CUALQUIER NIVEL.","SAL.",5]
["02.-","SUMINISTRO Y COLOCACIÓN DE SALIDA PARA CONTACTO POLARIZADO 127 V.  CON TAPA PARA IMTEMPERIE,, EN CAJA 4x2\", CANALIZACIÓN A BASE DE TUBERÍA CONDUIT PVC PARED GRUESA DE 16 mm (1/2\"), CABLEADO CON CALIBRE 12 AWG THW-LS 90°C PARA FASE Y NEUTRO, 14 AWG CUALQUIER AISLAMIENTO PARA SISTEMA DE TIERRAS, INCLUYE: CONEXIÓN, RANURA Y RESANE EN MURO O PISO, CARGO DIRECTO POR EL COSTO DE MANO DE OBRA Y MATERIALES REQUERIDOS, FLETE A OBRA, ACARREO, COPLE, TRAZO, CORTE, GUÍA DE ALAMBRE GALVANIZADO CALIBRE 14, FIJACIÓN, LIMPIEZA Y RETIRO DE SOBRANTES FUERA DE OBRA, EQUIPO DE SEGURIDAD, INSTALACIONES ESPECÍFICAS, DEPRECIACIÓN Y DEMÁS CARGOS DERIVADOS DEL USO DE EQUIPO Y HERRAMIENTA, EN CUALQUIER NIVEL.","SAL.",3]
["03.-","SUMINISTRO, COLOCACIÓN Y CONEXIÓN DE LÁMPARA LED, MODELO SERIE EP 220, DE 22W., 127 VOLTS., L7340-913, MARCA MAGG, PARA EMPOTRAR EN PISO TERMINADO COLOR ACERO INOXIDABLE, LUZ CALIDA, 2,700°, PANTALLLA TRANSPARENTE,  SE INCLUYE: LED, DRIVER LED, TORNILLOS, TUERCAS, ARANDELAS Y DEMÁS ELEMENTOS DE FIJACIÓN Y CONEXIÓN, CARGO DIRECTO POR EL COSTO DE MANO DE OBRA Y MATERIALES REQUERIDOS, FLETE A OBRA, ACARREO, COLOCACIÓN, FIJACIÓN, LIMPIEZA Y RETIRO DE SOBRANTES FUERA DE OBRA, EQUIPO DE SEGURIDAD, INSTALACIONES ESPECIFICAS, DEPRECIACIÓN Y DEMÁS CARGOS DERIVADOS DEL USO DE HERRAMIENTA Y EQUIPO EN CUALQUIER NIVEL, ANEXAR COPIA DE CERTIFICADO DEL PRODUCTO.","PZA.",20]
["03.-","SUMINISTRO, COLOCACIÓN Y CONEXIÓN DE LÁMPARA LED, MODELO SERIE KR, DE 12W., 127 VOLTS., L7424-6I5, MARCA MAGG, PARA SOBREPONER TIPO REFLECTOR, TERMINADO COLOR NEGRO, LUZ NEUTRA, 4,000°K, 970 LUMENS,  PANTALLLA TRANSPARENTE,  SE INCLUYE: LED, DRIVER LED, TORNILLOS, TUERCAS, ARANDELAS Y DEMÁS ELEMENTOS DE FIJACIÓN Y CONEXIÓN, CARGO DIRECTO POR EL COSTO DE MANO DE OBRA Y MATERIALES REQUERIDOS, FLETE A OBRA, ACARREO, COLOCACIÓN, FIJACIÓN, LIMPIEZA Y RETIRO DE SOBRANTES FUERA DE OBRA, EQUIPO DE SEGURIDAD, INSTALACIONES ESPECIFICAS, DEPRECIACIÓN Y DEMÁS CARGOS DERIVADOS DEL USO DE HERRAMIENTA Y EQUIPO EN CUALQUIER NIVEL, ANEXAR COPIA DE CERTIFICADO DEL PRODUCTO.","PZA.",4]
["05.-","SUMINISTRO Y COLOCACIÓN DE SALIDA ELÉCTRICA PARA FOTOCELDA, EN CAJA DE LAMINA GALVANIZADA OCTAGONAL CON TAPA CIEGA, TUBO CONDUIT PVC PARED GRUESA DE 16 MM. (1/2\") DE DIÁMETRO, INCLUYE: CABLEADO CON CALIBRE 12 AWG THW-LS 90° PARA FASES Y NEUTRO Y 14 AWG DESNUDO PARA TIERRA FÍSICA, FIJADO EN ESTRUCTURA METALICA CON ABRASADERA OMEGA CADA 1.5 M. MATERIAL DIVERSO DE FIJACIÓN, APAGADOR, CONEXIÓN DEL CIRCUITO, RANURAS, PASOS Y RESANES NECESARIOS EN MURO, CARGO DIRECTO POR EL COSTO DE MANO DE OBRA Y MATERIALES REQUERIDOS, FLETE A OBRA, ACARREO, COPLE, TRAZO, CORTE, COLOCACIÓN, GUÍA DE ALAMBRE GALVANIZADO CALIBRE 14, FIJACIÓN, LIMPIEZA Y RETIRO DE SOBRANTES FUERA DE OBRA, EQUIPO DE SEGURIDAD, INSTALACIONES ESPECIFICAS, DEPRECIACIÓN Y DEMÁS CARGOS DERIVADOS DEL USO DE HERRAMIENTA Y EQUIPO EN CUALQUIER NIVEL.","SAL.",2]
["08.-","INTERRUPTOR TERMOMAGNÉTICO MARCA SQUARE D, INCLUYE: CARGO DIRECTO POR EL COSTO DE MANO DE OBRA Y MATERIALES REQUERIDOS, FLETE A OBRA, ACARREO, TRAZO, FIJACIÓN, CONEXIÓN MECÁNICA, CONEXIÓN ELÉCTRICA, PRUEBA, LIMPIEZA Y RETIRO DE SOBRANTES FUERA DE OBRA, EQUIPO DE SEGURIDAD, INSTALACIONES ESPECÍFICAS, DEPRECIACIÓN Y DEMÁS DERIVADOS DEL USO DE EQUIPO Y HERRAMIENTA, EN CUALQUIER NIVEL."]
[null,"DEL TIPO QO 1 POLOS DE 15 AMPERES ","PZA.",3]
[null,"DEL TIPO QO 2 POLOS DE 20 AMPERES","PZA.",1]
["14.-","SUMINISTRO Y COLOCACIÓN DE SALIDA PARA CONTACTO 220 V. POLARIZADA A 20 A., EN CAJA 4x2\", CANALIZACIÓN A BASE DE TUBERÍA PVC PARED GRUESA DE 21 MM. (3/4\") DE DIÁMETRO,  INCLUYE: CABLEADO CON CALIBRE 10 AWG THW-LS 90°C PARA FASE, 12 AWG DESNUDO TIERRA FISICA, CONEXIÓN, RANURA Y RESANE EN MURO, CARGO DIRECTO POR EL COSTO DE MANO DE OBRA Y MATERIALES REQUERIDOS, FLETE A OBRA, ACARREO, COPLE, TRAZO, CORTE, GUÍA DE ALAMBRE GALVANIZADO CALIBRE 14, FIJACIÓN, LIMPIEZA Y RETIRO DE SOBRANTES FUERA DE OBRA, EQUIPO DE SEGURIDAD, INSTALACIONES ESPECÍFICAS, DEPRECIACIÓN Y DEMÁS CARGOS DERIVADOS DEL USO DE EQUIPO Y HERRAMIENTA, EN CUALQUIER NIVEL.","SAL.",1]
["K.4.-","PISTA SKATE.",null,null,null,null,{"$f":"SUM(G204:G213)","v":0}]
[]
["01.-","SUMINISTRO Y COLOCACIÓN DE REFLECTOR LED DE 200W,  VOLTAJE 220 VOLTS, MARCA FORLIGHTING, MODELO HALCON LED PLUS,  SUPRESOR DE PICOS 10KV, DRIVER PHILIPS, IP67, LED CREE  SE INCLUYEN: CARGO DIRECTO POR EL COSTO DE MANO DE OBRA Y MATERIALES REQUERIDOS, FLETE A OBRA, ACARREO, COPLE, TRAZO, CORTE, CIMBRA,  COLOCACIÓN,  GUÍA DE ALAMBRE GALVANIZADO CALIBRE 14,  11 M. DE CABLE ARMAFLEX 3x10 AWG, FIJACIÓN, LIMPIEZA Y RETIRO DE SOBRANTES FUERA DE OBRA, EQUIPO DE SEGURIDAD, INSTALACIONES ESPECÍFICAS, DEPRECIACIÓN Y DEMÁS CARGOS DERIVADOS DEL USO DE EQUIPO Y HERRAMIENTA, EN CUALQUIER NIVEL. ","PZA.",4]
["02.-","SUMINISTRO Y COLOCACIÓN DE POSTE DE Fe. CIRCULAR CICULAR GALVANIZADO DE 9 METROS DE ALTURA GALVANIZADO POR INMERCION, CON ESMALTE ANTICORROSIVO Y PINTADO EN COLOR INDICADO POR EL SUPERVISOR,  CON BASE PARA MONTAJE PARA LOS REFLECTORES, FABRICADO CON ANGULO DE 1/2\"  DE ACERO, SE INCLUYE, CIMENTACIÓN TRAPEZOIDAL DE CONCRETO DE 40x40 EN CORONA Y 100x100 EN BASE, CON ALTURA DE 120 Cm., F´c=200 Kg/Cm2 ARMADA CON VARILLA N° 3 Y 4 SEGÚN SE INDICA EN PLANOS,  ANCLAJE ADECUADO, INCLUYE CARGO DIRECTO POR EL COSTO DE MANO DE OBRA Y MATERIALES REQUERIDOS, FLETE A OBRA, ACARREO, COPLE, TRAZO, CORTE, CIMBRA,  COLOCACIÓN, GUÍA DE ALAMBRE GALVANIZADO CALIBRE 14, FIJACIÓN, LIMPIEZA Y RETIRO DE SOBRANTES FUERA DE OBRA, EQUIPO DE SEGURIDAD, INSTALACIONES ESPECÍFICAS, DEPRECIACIÓN Y DEMÁS CARGOS DERIVADOS DEL USO DE EQUIPO Y HERRAMIENTA, EN CUALQUIER NIVEL.","PZA",2]
["03.-","EXCAVACIÓN DE ZANJA DE 50 Cm DE PROFUNDIDAD Y ANCHO VARIABLE DE 20 A 40 Cm EN TERRENO INVESTIGADO EN SITIO,  CAMA DE ARENA DE 10 Cm, TENDIDO DE TUBOS SEGÚN SE INDICA EN PLANOS, RELLENO DE LA ZANJA CON MATERIAL PRODUCTO DE EXCAVACIÓN COMPACTADO AL 90% MÍNIMO, INCLUYE CARGO DIRECTO POR EL COSTO DE MANO DE OBRA Y MATERIALES Y EQUIPOS REQUERIDOS, ACARREOS, TRAZO, LIMPIEZA Y RETIRO DE SOBRANTES FUERA DE OBRA, EQUIPO DE SEGURIDAD, INSTALACIONES ESPECÍFICAS, DEPRECIACIÓN Y DEMÁS CARGOS DERIVADOS DEL USO DE EQUIPO Y HERRAMIENTA, EN CUALQUIER NIVEL..","ML",86]
["04.-","SUMINISTRO Y COLOCACIÓN DE CANALIZACIÓN ELÉCTRICA A BASE DE TUBERÍA CONDUIT PVC PARED GRUESA, INCLUYE CARGO DIRECTO POR EL COSTO DE MANO DE OBRA Y MATERIALES REQUERIDOS, FLETE A OBRA, ACARREO, COPLE, TRAZO, CORTE, COLOCACIÓN, GUÍA DE ALAMBRE GALVANIZADO CALIBRE 14, FIJACIÓN, LIMPIEZA Y RETIRO DE SOBRANTES FUERA DE OBRA, EQUIPO DE SEGURIDAD, INSTALACIONES ESPECÍFICAS, DEPRECIACIÓN Y DEMÁS CARGOS DERIVADOS DEL USO DE EQUIPO Y HERRAMIENTA, EN CUALQUIER NIVEL."]
[null,"DE Ø 35 mm. Ø (1-1/4\")","ML",94]
["05.-","SUMINISTRO Y COLOCACIÓN DE CABLE DE ALUMINIO, INCLUYE: CARGO DIRECTO POR EL COSTO DE MANO DE OBRA Y MATERIALES REQUERIDOS, FLETE A OBRA, ACARREO, DESPERDICIO, TRAZAR, CORTAR, MARCAR Y PRUEBAS, GUIADO, CABLEADO, PEINAR, CONEXIÓN, SOLDAR, ENCINTAR, LIMPIEZA Y RETIRO DE SOBRANTES FUERA DE OBRA, EQUIPO DE SEGURIDAD, INSTALACIONES ESPECÍFICAS, DEPRECIACIÓN Y DEMÁS CARGOS DERIVADOS DEL USO DE EQUIPO Y HERRAMIENTA, EN CUALQUIER NIVEL."]
[null,"DEL 6 AWG TRIPLEX","ML",95]
["06.-","SUMINISTRO Y COLOCACION DE REGISTRO ELECTRICO DE 40x40x60 CMS., PREFABRICADO A BASE CEMENTO F´c=150 Kg/Cm2, APLANADO INTERIOR PULIDO FINO CEMENTO ARENA 1:3, PISO DE GRAVA, MARCO Y CONTRAMARCO DE FIERRO, AGULO 1-1/2¨X1/4¨ Y TAPA DE CONCRETO F´C=150 Kg/Cm2, POR UNIDAD DE OBRA TERMINADA.","PZA",2]
["07.-","SUMINISTRO Y COLOCACIÓN DE CONTACTOR DE ALUMBRADO MONOFÁSICO, 220 VOLTS., 60 AMPERES, BOBINA DE CONTROL 127 VOLTS., INCLUYE: GABINETE MULTIPROPÓSITO PARA SOBREPONER NEMA 3, FOTOCELDA CON CABLEADO DE CONTROL Y CONEXIÓN A CIRCUITO DE ALUMBRADO, INCLUYE CARGO DIRECTO POR EL COSTO DE MANO DE OBRA Y MATERIALES REQUERIDOS, FLETE A OBRA, ACARREO, COPLE, TRAZO, CORTE, COLOCACIÓN, GUÍA DE ALAMBRE GALVANIZADO CALIBRE 14, FIJACIÓN, LIMPIEZA Y RETIRO DE SOBRANTES FUERA DE OBRA, EQUIPO DE SEGURIDAD, INSTALACIONES ESPECÍFICAS, DEPRECIACIÓN Y DEMÁS CARGOS DERIVADOS DEL USO DE EQUIPO Y HERRAMIENTA, EN CUALQUIER NIVEL..","PZA",1]
["08.-","INTERRUPTOR TERMOMAGNÉTICO MARCA SQUARE D, INCLUYE: CARGO DIRECTO POR EL COSTO DE MANO DE OBRA Y MATERIALES REQUERIDOS, FLETE A OBRA, ACARREO, TRAZO, FIJACIÓN, CONEXIÓN MECÁNICA, CONEXIÓN ELÉCTRICA, PRUEBA, LIMPIEZA Y RETIRO DE SOBRANTES FUERA DE OBRA, EQUIPO DE SEGURIDAD, INSTALACIONES ESPECÍFICAS, DEPRECIACIÓN Y DEMÁS DERIVADOS DEL USO DE EQUIPO Y HERRAMIENTA, EN CUALQUIER NIVEL."]
[null,"DEL TIPO QO 2 POLOS DE 20 AMPERES","PZA.",1]
[null,"SUBTOTAL INSTALACIONE ELECTRICAS",null,null,null,null,{"$f":"G160+G183+G191+G202","v":0}]

{"sheet":"RESUMEN","index":1,"n_rows":55,"n_cols":6,"rows_kept":55,"cut":false,"hidden":false,"merged":[[1,0,1,6],[3,0,3,6],[4,0,4,6],[62,0,62,6],[63,0,63,6],[2,1,2,5],[6,0,6,6],[7,0,7,6],[8,0,8,6]]}
[]
["GOBIERNO DEL ESTADO DE BAJA CALIFORNIA SUR"]
[null,"SECRETARIA DE PLANEACIÓN URBANA, INFRAESTRUCTURA,                                                                                 MOVILIDAD, MEDIO AMBIENTE Y RECURSOS NATURALES"]
["DIRECCIÓN DE OBRAS PUBLICAS"]
["RESUMEN"]
[]
[{"$f":"CATALOGO!A8","v":"OBRA: REHABILITACION DE SEGUNDA ETAPA ESCUELA DE MUSICA (PARQUE EXTERIOR) EN CIUDAD CONSTITUCION, MUNICIPIO DE COMONDU, BAJA CALIFORNIA SUR."}]
[{"$f":"CATALOGO!A9","v":"LICITACION PUBLICA No. LPO-000000007-053-2024"}]
[{"$f":"CATALOGO!A10","v":"CONCURSO No."}]
[]
[{"$f":"CATALOGO!A13","v":"A.-"},{"$f":"CATALOGO!B13","v":"PRELIMINARES."}]
[null,{"$f":"CATALOGO!B15","v":"SUBTOTAL PRELIMINARES"},null,null,null,{"$f":"CATALOGO!G15","v":0}]
[]
[{"$f":"CATALOGO!A16","v":"B.-"},{"$f":"CATALOGO!B16","v":"ALBAÑILERIA"}]
[null,{"$f":"CATALOGO!B24","v":"SUBTOTAL ALBAÑILERIA"},null,null,null,{"$f":"CATALOGO!G24","v":0}]
[]
[{"$f":"CATALOGO!A25","v":"C.-"},{"$f":"CATALOGO!B25","v":"CERCO PERIMETRAL DE REJACERO Y MALLA CICLONICA"}]
[null,{"$f":"CATALOGO!B31","v":"SUBTOTALCERCO PERIMETRAL DE REJACERO Y MALLA CICLONICA"},null,null,null,{"$f":"CATALOGO!G31","v":0}]
[]
[{"$f":"CATALOGO!A32","v":"D.-"},{"$f":"CATALOGO!B32","v":"JUEGOS INFANTILES Y EJERCITADORES"}]
[null,{"$f":"CATALOGO!B39","v":"SUBTOTAL JUEGOS INFANTILES Y EJERCITADORES"},null,null,null,{"$f":"CATALOGO!G34","v":0}]
[]
[{"$f":"CATALOGO!A40","v":"E.-"},{"$f":"CATALOGO!B40","v":"MOBILIARIO URBANO"}]
[null,{"$f":"CATALOGO!B39","v":"SUBTOTAL JUEGOS INFANTILES Y EJERCITADORES"},null,null,null,{"$f":"CATALOGO!G49","v":0}]
[]
[{"$f":"CATALOGO!A50","v":"F.-"},{"$f":"CATALOGO!B50","v":"ANFITEATRO"}]
[null,{"$f":"CATALOGO!B67","v":"SUBTOTAL ANFITEATRO"},null,null,null,{"$f":"CATALOGO!G67","v":0}]
[]
[{"$f":"CATALOGO!A68","v":"G.-"},{"$f":"CATALOGO!B68","v":"VELARIAS"}]
[null,{"$f":"CATALOGO!B75","v":"SUBTOTAL VELARIAS"},null,null,null,{"$f":"CATALOGO!G75","v":0}]
[]
[{"$f":"CATALOGO!A76","v":"H.-"},{"$f":"CATALOGO!B76","v":"TALLER"}]
[{"$f":"CATALOGO!A77","v":"H.1.-"},{"$f":"CATALOGO!B77","v":"CIMENTACION"},null,null,null,{"$f":"CATALOGO!G77","v":0}]
[{"$f":"CATALOGO!A92","v":"H.2.-"},{"$f":"CATALOGO!B92","v":"ALBAÑILERIA"},null,null,null,{"$f":"CATALOGO!G92","v":0}]
[{"$f":"CATALOGO!A110","v":"H.3.-"},{"$f":"CATALOGO!B110","v":"ESTRUCTURA DE ACERO Y TECHUMBRE"},null,null,null,{"$f":"CATALOGO!G110","v":0}]
[null,{"$f":"CATALOGO!B122","v":"SUBTOTAL TALLER"},null,null,null,{"$f":"CATALOGO!G122","v":0}]
[]
[{"$f":"CATALOGO!A123","v":"I.-"},{"$f":"CATALOGO!B123","v":"JARDINERIA"}]
[{"$f":"CATALOGO!A127","v":"I.1.-"},{"$f":"CATALOGO!B127","v":"INSTALACIÓN HIDRÁULICA"},null,null,null,{"$f":"CATALOGO!G127","v":0}]
[null,{"$f":"CATALOGO!B136","v":"SUBTOTAL JARDINERIA"},null,null,null,{"$f":"CATALOGO!G84","v":0}]
[]
[{"$f":"CATALOGO!A137","v":"J.-"},{"$f":"CATALOGO!B137","v":"PISTA SKATE PUMP TRACK"}]
[null,{"$f":"CATALOGO!B158","v":"SUBTOTAL PUMP-TRACK SKATE BOARD"},null,null,null,{"$f":"CATALOGO!G158","v":0}]
[]
[{"$f":"CATALOGO!A159","v":"K.-"},{"$f":"CATALOGO!B159","v":"INSTALACIONES ELECTRICAS"}]
[{"$f":"CATALOGO!A160","v":"K.1.-"},{"$f":"CATALOGO!B160","v":"AREA GENERAL."},null,null,null,{"$f":"CATALOGO!G160","v":0}]
[{"$f":"CATALOGO!A183","v":"K.2.-"},{"$f":"CATALOGO!B183","v":"TALLER DE SOLDADURA"},null,null,null,{"$f":"CATALOGO!G183","v":0}]
[{"$f":"CATALOGO!A191","v":"K.3.-"},{"$f":"CATALOGO!B191","v":"ANFITEATRO."},null,null,null,{"$f":"CATALOGO!G191","v":0}]
[{"$f":"CATALOGO!A202","v":"K.4.-"},{"$f":"CATALOGO!B202","v":"PISTA SKATE."},null,null,null,{"$f":"CATALOGO!G202","v":0}]
[null,{"$f":"CATALOGO!B215","v":"SUBTOTAL INSTALACIONE ELECTRICAS"},null,null,null,{"$f":"CATALOGO!G215","v":0}]
[]
[]
[null,null,null,"SUBTOTAL",null,{"$f":"F12+F15+F18+F21+F24+F27+F30+F36+F40+F43+F50","v":0}]
[null,null,null,"I.V.A. 16 %",null,{"$f":"F53*0.16","v":0}]
[null,null,null,"TOTAL",null,{"$f":"F53+F54","v":0}]